Workbook

Sheet MENU
A15: Observaciones al Correo Electrónico
A16: dejecutiva@tse.go.cr

Sheet 5.1
A2: CUADRO 5.1 COSTA RICA: DISTRIBUCIÓN DE LOS CANDIDATOS(AS)
A3: POR SEXO, ELECCIONES 7 DE FEBRERO 2010
A4: (CIFRAS ABSOLUTAS Y RELATIVAS)
A6: CANDIDATURAS | B6: TOTAL | C6: HOMBRES | E6: MUJERES
C7: ABSOLUTO | D7: % | E7: ABSOLUTO | F7: %
A9: TOTAL | B9: =SUM(B11:B15) -> 8050 | C9: =SUM(C11:C15) -> 3917 | D9: =+C9/B9*100 -> 48.65838509 | E9: =SUM(E11:E15) -> 4133 | F9: =+E9/B9*100 -> 51.34161491
A11: PRESIDENTE(A) | B11: =+C11+E11 -> 9 | C11: 7 | D11: =+C11/B11*100 -> 77.77777778 | E11: 2 | F11: =+E11/B11*100 -> 22.22222222
A12: PRIMER(A) VICEPRESIDENTE(A) | B12: =+C12+E12 -> 9 | C12: 5 | D12: =+C12/B12*100 -> 55.55555556 | E12: 4 | F12: =+E12/B12*100 -> 44.44444444
A13: SEGUNDO(A) VICEPRESIDENTE(A) | B13: =+C13+E13 -> 9 | C13: 6 | D13: =+C13/B13*100 -> 66.66666667 | E13: 3 | F13: =+E13/B13*100 -> 33.33333333
A14: DIPUTADOS(AS) | B14: =+C14+E14 -> 789 | C14: 395 | D14: =+C14/B14*100 -> 50.06337136 | E14: 394 | F14: =+E14/B14*100 -> 49.93662864
A15: REGIDORES(AS) | B15: =+C15+E15 -> 7234 | C15: 3504 | D15: =+C15/B15*100 -> 48.43793199 | E15: 3730 | F15: =+E15/B15*100 -> 51.56206801

Sheet 5.2
A1: CUADRO 5.2 COSTA RICA: DISTRIBUCIÓN DE LOS CANDIDATOS(AS), POR SEXO
A2: SEGÚN PARTIDO, ELECCIONES 7 DE FEBRERO 2010
A3: (CIFRAS ABSOLUTAS Y RELATIVAS)
A5: PARTIDO | B5: TOTAL | G5: PRESIDENTE(A) Y VICEPRESIDENTES(AS) | L5: DIPUTADOS(AS) | Q5: REGIDORES(AS)
A6: PARTIDO POLITICO | B6: TOTAL | C6: HOMBRES | E6: MUJERES | G6: TOTAL | H6: HOMBRES | J6: MUJERES | L6: TOTAL | M6: HOMBRES | O6: MUJERES | Q6: TOTAL | R6: HOMBRES | T6: MUJERES
B7: ABS | C7: ABS | D7: % | E7: ABS | F7: % | G7: ABS | H7: ABS | I7: % | J7: ABS | K7: % | L7: ABS | M7: ABS | N7: % | O7: ABS | P7: % | Q7: ABS | R7: ABS | S7: % | T7: ABS | U7: %
A9: TOTAL | B9: =SUM(B11:B62) -> 8050 | C9: =SUM(C11:C62) -> 3917 | D9: =C9/B9*100 -> 48.65838509 | E9: =SUM(E11:E62) -> 4133 | F9: =E9/B9*100 -> 51.34161491 | G9: =SUM(G11:G62) -> 27 | H9: =SUM(H11:H62) -> 18 | I9: =H9/G9*100 -> 66.66666667 | J9: =SUM(J11:J62) -> 9 | K9: =J9/G9*100 -> 33.33333333 | L9: =SUM(L11:L62) -> 789 | M9: =SUM(M11:M62) -> 395 | N9: =M9/L9*100 -> 50.06337136 | O9: =SUM(O11:O62) -> 394 | P9: =O9/L9*100 -> 49.93662864 | Q9: =SUM(Q11:Q62) -> 7234 | R9: =SUM(R11:R62) -> 3504 | S9: =R9/Q9*100 -> 48.43793199 | T9: =SUM(T11:T62) -> 3730 | U9: =T9/Q9*100 -> 51.56206801
A11: UNIDAD SOCIAL CRISTIANA | B11: =+C11+E11 -> 1056 | C11: =+H11+M11+R11 -> 549 | D11: =C11/B11*100 -> 51.98863636 | E11: =+J11+O11+T11 -> 507 | F11: =E11/B11*100 -> 48.01136364 | G11: =+H11+J11 -> 3 | H11: 2 | I11: =H11/G11*100 -> 66.66666667 | J11: 1 | K11: =J11/G11*100 -> 33.33333333 | L11: =+M11+O11 -> 75 | M11: 39 | N11: =M11/L11*100 -> 52 | O11: 36 | P11: =O11/L11*100 -> 48 | Q11: =+R11+T11 -> 978 | R11: 508 | S11: =R11/Q11*100 -> 51.94274029 | T11: 470 | U11: =T11/Q11*100 -> 48.05725971
A12: COMUNAL PRO-CURRI | B12: =+C12+E12 -> 13 | C12: =+H12+M12+R12 -> 7 | D12: 53.84615385 | E12: =+J12+O12+T12 -> 6 | F12: 46.15384615 | G12: =+H12+J12 -> 0 | H12: 0 | I12: 0 | J12: 0 | K12: 0 | L12: 0 | M12: 0 | N12: 0 | O12: 0 | P12: 0 | Q12: 13 | R12: 7 | S12: =R12/Q12*100 -> 53.84615385 | T12: 6 | U12: =T12/Q12*100 -> 46.15384615
A13: CURRIDABAT SIGLO XXI | B13: 14 | C13: 8 | D13: 57.14285714 | E13: 6 | F13: 42.85714286 | G13: 0 | H13: 0 | I13: 0 | J13: 0 | K13: 0 | L13: 0 | M13: 0 | N13: 0 | O13: 0 | P13: 0 | Q13: 14 | R13: 8 | S13: =R13/Q13*100 -> 57.14285714 | T13: 6 | U13: =T13/Q13*100 -> 42.85714286
A14: TARRAZÚ PRIMERO | B14: 8 | C14: 3 | D14: 37.5 | E14: 5 | F14: 62.5 | G14: 0 | H14: 0 | I14: 0 | J14: 0 | K14: 0 | L14: 0 | M14: 0 | N14: 0 | O14: 0 | P14: 0 | Q14: 8 | R14: 3 | S14: 37.5 | T14: 5 | U14: 62.5
A15: FUERZA FAMILIAR ALAJUELENSE | B15: 14 | C15: 7 | D15: 50 | E15: 7 | F15: 50 | G15: 0 | H15: 0 | I15: 0 | J15: 0 | K15: 0 | L15: 14 | M15: 7 | N15: =M15/L15*100 -> 50 | O15: 7 | P15: =O15/L15*100 -> 50 | Q15: 0 | R15: 0 | S15: 0 | T15: 0 | U15: 0
A16: INTEGRACIÓN NACIONAL | B16: 192 | C16: 94 | D16: 48.95833333 | E16: 98 | F16: 51.04166667 | G16: 3 | H16: 2 | I16: =H16/G16*100 -> 66.66666667 | J16: 1 | K16: =J16/G16*100 -> 33.33333333 | L16: 74 | M16: 35 | N16: =M16/L16*100 -> 47.2972973 | O16: 39 | P16: =O16/L16*100 -> 52.7027027 | Q16: 115 | R16: 57 | S16: 49.56521739 | T16: 58 | U16: 50.43478261
A17: CÍVICO DE TIBÁS FUENTEOVEJUNA | B17: 14 | C17: 6 | D17: 42.85714286 | E17: 8 | F17: 57.14285714 | G17: 0 | H17: 0 | I17: 0 | J17: 0 | K17: 0 | L17: 0 | M17: 0 | N17: 0 | O17: 0 | P17: 0 | Q17: 14 | R17: 6 | S17: 42.85714286 | T17: 8 | U17: 57.14285714
A18: GOICOECHEA EN ACCIÓN | B18: 17 | C18: 9 | D18: 52.94117647 | E18: 8 | F18: 47.05882353 | G18: 0 | H18: 0 | I18: 0 | J18: 0 | K18: 0 | L18: 0 | M18: 0 | N18: 0 | O18: 0 | P18: 0 | Q18: 17 | R18: 9 | S18: 52.94117647 | T18: 8 | U18: 47.05882353
A19: VERDE ECOLOGISTA | B19: 99 | C19: 44 | D19: 44.44444444 | E19: 55 | F19: 55.55555556 | G19: 0 | H19: 0 | I19: 0 | J19: 0 | K19: 0 | L19: 9 | M19: 4 | N19: =M19/L19*100 -> 44.44444444 | O19: 5 | P19: =O19/L19*100 -> 55.55555556 | Q19: 90 | R19: 40 | S19: 44.44444444 | T19: 50 | U19: 55.55555556
A20: TALAMANCA UNIDA | B20: 9 | C20: 6 | D20: 66.66666667 | E20: 3 | F20: 33.33333333 | G20: 0 | H20: 0 | I20: 0 | J20: 0 | K20: 0 | L20: 0 | M20: 0 | N20: 0 | O20: 0 | P20: 0 | Q20: 9 | R20: 6 | S20: 66.66666667 | T20: 3 | U20: 33.33333333
A21: ALIANZA PATRIÓTICA | B21: 765 | C21: 369 | D21: 48.23529412 | E21: 396 | F21: 51.76470588 | G21: 3 | H21: 2 | I21: =H21/G21*100 -> 66.66666667 | J21: 1 | K21: =J21/G21*100 -> 33.33333333 | L21: 73 | M21: 36 | N21: =M21/L21*100 -> 49.31506849 | O21: 37 | P21: =O21/L21*100 -> 50.68493151 | Q21: 689 | R21: 331 | S21: 48.04063861 | T21: 358 | U21: 51.95936139
A22: RENOVEMOS ALAJUELA | B22: 22 | C22: 14 | D22: 63.63636364 | E22: 8 | F22: 36.36363636 | G22: 0 | H22: 0 | I22: 0 | J22: 0 | K22: 0 | L22: 0 | M22: 0 | N22: 0 | O22: 0 | P22: 0 | Q22: 22 | R22: 14 | S22: 63.63636364 | T22: 8 | U22: 36.36363636
A23: EL PUENTE Y LOS CAMINOS DE MORA | B23: 10 | C23: 6 | D23: 60 | E23: 4 | F23: 40 | G23: 0 | H23: 0 | I23: 0 | J23: 0 | K23: 0 | L23: 0 | M23: 0 | N23: 0 | O23: 0 | P23: 0 | Q23: 10 | R23: 6 | S23: 60 | T23: 4 | U23: 40
A24: UNIÓN PALMAREÑA | B24: 10 | C24: 4 | D24: 40 | E24: 6 | F24: 60 | G24: 0 | H24: 0 | I24: 0 | J24: 0 | K24: 0 | L24: 0 | M24: 0 | N24: 0 | O24: 0 | P24: 0 | Q24: 10 | R24: 4 | S24: 40 | T24: 6 | U24: 60
A25: RENOVACIÓN COSTARRICENSE | B25: 670 | C25: 302 | D25: 45.07462687 | E25: 368 | F25: 54.92537313 | G25: 3 | H25: 2 | I25: =H25/G25*100 -> 66.66666667 | J25: 1 | K25: =J25/G25*100 -> 33.33333333 | L25: 75 | M25: 35 | N25: =M25/L25*100 -> 46.66666667 | O25: 40 | P25: =O25/L25*100 -> 53.33333333 | Q25: 592 | R25: 265 | S25: 44.76351351 | T25: 327 | U25: 55.23648649
A26: MONTES DE OCA UNIDA (COALICIÓN) | B26: 14 | C26: 5 | D26: 35.71428571 | E26: 9 | F26: 64.28571429 | G26: 0 | H26: 0 | I26: 0 | J26: 0 | K26: 0 | L26: 0 | M26: 0 | N26: 0 | O26: 0 | P26: 0 | Q26: 14 | R26: 5 | S26: 35.71428571 | T26: 9 | U26: 64.28571429
A27: FRENTE AMPLIO | B27: 646 | C27: 323 | D27: 50 | E27: 323 | F27: 50 | G27: 3 | H27: 2 | I27: =H27/G27*100 -> 66.66666667 | J27: 1 | K27: =J27/G27*100 -> 33.33333333 | L27: 74 | M27: 37 | N27: =M27/L27*100 -> 50 | O27: 37 | P27: =O27/L27*100 -> 50 | Q27: 569 | R27: 284 | S27: 49.91212654 | T27: 285 | U27: 50.08787346
A28: ORGANIZACIÓN LABORISTA DE AGUIRRE | B28: 8 | C28: 3 | D28: 37.5 | E28: 5 | F28: 62.5 | G28: 0 | H28: 0 | I28: 0 | J28: 0 | K28: 0 | L28: 0 | M28: 0 | N28: 0 | O28: 0 | P28: 0 | Q28: 8 | R28: 3 | S28: 37.5 | T28: 5 | U28: 62.5
A29: ALIANZA SANCARLEÑA (COALICIÓN) | B29: 18 | C29: 8 | D29: 44.44444444 | E29: 10 | F29: 55.55555556 | G29: 0 | H29: 0 | I29: 0 | J29: 0 | K29: 0 | L29: 0 | M29: 0 | N29: 0 | O29: 0 | P29: 0 | Q29: 18 | R29: 8 | S29: 44.44444444 | T29: 10 | U29: 55.55555556
A30: VIVA BUENOS AIRES | B30: 10 | C30: 6 | D30: 60 | E30: 4 | F30: 40 | G30: 0 | H30: 0 | I30: 0 | J30: 0 | K30: 0 | L30: 0 | M30: 0 | N30: 0 | O30: 0 | P30: 0 | Q30: 10 | R30: 6 | S30: 60 | T30: 4 | U30: 40
A31: ACCIÓN NARANJEÑA | B31: 9 | C31: 3 | D31: 33.33333333 | E31: 6 | F31: 66.66666667 | G31: 0 | H31: 0 | I31: 0 | J31: 0 | K31: 0 | L31: 0 | M31: 0 | N31: 0 | O31: 0 | P31: 0 | Q31: 9 | R31: 3 | S31: 33.33333333 | T31: 6 | U31: 66.66666667
A32: LIBERACIÓN NACIONAL | B32: 1066 | C32: 542 | D32: 50.84427767 | E32: 524 | F32: 49.15572233 | G32: 3 | H32: 2 | I32: =H32/G32*100 -> 66.66666667 | J32: 1 | K32: =J32/G32*100 -> 33.33333333 | L32: 75 | M32: 41 | N32: =M32/L32*100 -> 54.66666667 | O32: 34 | P32: =O32/L32*100 -> 45.33333333 | Q32: 988 | R32: 499 | S32: 50.50607287 | T32: 489 | U32: 49.49392713
A33: GARABITO ECOLÓGICO | B33: 10 | C33: 5 | D33: 50 | E33: 5 | F33: 50 | G33: 0 | H33: 0 | I33: 0 | J33: 0 | K33: 0 | L33: 0 | M33: 0 | N33: 0 | O33: 0 | P33: 0 | Q33: 10 | R33: 5 | S33: 50 | T33: 5 | U33: 50
A34: UNIÓN AGRÍCOLA CARTAGINÉS | B34: 29 | C34: 15 | D34: 51.72413793 | E34: 14 | F34: 48.27586207 | G34: 0 | H34: 0 | I34: 0 | J34: 0 | K34: 0 | L34: 9 | M34: 5 | N34: =M34/L34*100 -> 55.55555556 | O34: 4 | P34: =O34/L34*100 -> 44.44444444 | Q34: 20 | R34: 10 | S34: 50 | T34: 10 | U34: 50
A35: BARVA UNIDA (COALICIÓN) | B35: 10 | C35: 5 | D35: 50 | E35: 5 | F35: 50 | G35: 0 | H35: 0 | I35: 0 | J35: 0 | K35: 0 | L35: 0 | M35: 0 | N35: 0 | O35: 0 | P35: 0 | Q35: 10 | R35: 5 | S35: 50 | T35: 5 | U35: 50
A36: POPULAR DE ALFARO RUIZ (COALICIÓN) | B36: 9 | C36: 4 | D36: 44.44444444 | E36: 5 | F36: 55.55555556 | G36: 0 | H36: 0 | I36: 0 | J36: 0 | K36: 0 | L36: 0 | M36: 0 | N36: 0 | O36: 0 | P36: 0 | Q36: 9 | R36: 4 | S36: 44.44444444 | T36: 5 | U36: 55.55555556
A37: RESTAURACIÓN ALAJUELENSE | B37: 47 | C37: 25 | D37: 53.19148936 | E37: 22 | F37: 46.80851064 | G37: 0 | H37: 0 | I37: 0 | J37: 0 | K37: 0 | L37: 14 | M37: 8 | N37: =M37/L37*100 -> 57.14285714 | O37: 6 | P37: =O37/L37*100 -> 42.85714286 | Q37: 33 | R37: 17 | S37: 51.51515152 | T37: 16 | U37: 48.48484848
A38: MOVIMIENTO LIBERTARIO | B38: 1035 | C38: 480 | D38: 46.37681159 | E38: 555 | F38: 53.62318841 | G38: 3 | H38: 2 | I38: =H38/G38*100 -> 66.66666667 | J38: 1 | K38: =J38/G38*100 -> 33.33333333 | L38: 75 | M38: 36 | N38: =M38/L38*100 -> 48 | O38: 39 | P38: =O38/L38*100 -> 52 | Q38: 957 | R38: 442 | S38: 46.18599791 | T38: 515 | U38: 53.81400209
A39: RESTAURACIÓN NACIONAL | B39: 190 | C39: 80 | D39: 42.10526316 | E39: 110 | F39: 57.89473684 | G39: 0 | H39: 0 | I39: 0 | J39: 0 | K39: 0 | L39: 25 | M39: 12 | N39: =M39/L39*100 -> 48 | O39: 13 | P39: =O39/L39*100 -> 52 | Q39: 165 | R39: 68 | S39: 41.21212121 | T39: 97 | U39: 58.78787879
A40: AUTÓNOMO OROMONTANO | B40: 10 | C40: 5 | D40: 50 | E40: 5 | F40: 50 | G40: 0 | H40: 0 | I40: 0 | J40: 0 | K40: 0 | L40: 0 | M40: 0 | N40: 0 | O40: 0 | P40: 0 | Q40: 10 | R40: 5 | S40: 50 | T40: 5 | U40: 50
A41: AUTÉNTICO LABRADOR DE CORONADO | B41: 13 | C41: 6 | D41: 46.15384615 | E41: 7 | F41: 53.84615385 | G41: 0 | H41: 0 | I41: 0 | J41: 0 | K41: 0 | L41: 0 | M41: 0 | N41: 0 | O41: 0 | P41: 0 | Q41: 13 | R41: 6 | S41: 46.15384615 | T41: 7 | U41: 53.84615385
A42: MOVIMIENTO AVANCE SANTO DOMINGO | B42: 9 | C42: 4 | D42: 44.44444444 | E42: 5 | F42: 55.55555556 | G42: 0 | H42: 0 | I42: 0 | J42: 0 | K42: 0 | L42: 0 | M42: 0 | N42: 0 | O42: 0 | P42: 0 | Q42: 9 | R42: 4 | S42: 44.44444444 | T42: 5 | U42: 55.55555556
A43: ACCIÓN CANTONAL SIQUIRRES INDEPENDIENTE | B43: 12 | C43: 6 | D43: 50 | E43: 6 | F43: 50 | G43: 0 | H43: 0 | I43: 0 | J43: 0 | K43: 0 | L43: 0 | M43: 0 | N43: 0 | O43: 0 | P43: 0 | Q43: 12 | R43: 6 | S43: 50 | T43: 6 | U43: 50
A44: ACCIÓN QUEPEÑA | B44: 9 | C44: 5 | D44: 55.55555556 | E44: 4 | F44: 44.44444444 | G44: 0 | H44: 0 | I44: 0 | J44: 0 | K44: 0 | L44: 0 | M44: 0 | N44: 0 | O44: 0 | P44: 0 | Q44: 9 | R44: 5 | S44: 55.55555556 | T44: 4 | U44: 44.44444444
A45: MOVIMIENTO DE TRABAJADORES Y CAMPESINOS | B45: 61 | C45: 26 | D45: 42.62295082 | E45: 35 | F45: 57.37704918 | G45: 0 | H45: 0 | I45: 0 | J45: 0 | K45: 0 | L45: 7 | M45: 3 | N45: =M45/L45*100 -> 42.85714286 | O45: 4 | P45: =O45/L45*100 -> 57.14285714 | Q45: 54 | R45: 23 | S45: 42.59259259 | T45: 31 | U45: 57.40740741
A46: ÚNICO ABANGAREÑO | B46: 10 | C46: 6 | D46: 60 | E46: 4 | F46: 40 | G46: 0 | H46: 0 | I46: 0 | J46: 0 | K46: 0 | L46: 0 | M46: 0 | N46: 0 | O46: 0 | P46: 0 | Q46: 10 | R46: 6 | S46: 60 | T46: 4 | U46: 40
A47: UNIÓN ATENIENSE | B47: 9 | C47: 6 | D47: 66.66666667 | E47: 3 | F47: 33.33333333 | G47: 0 | H47: 0 | I47: 0 | J47: 0 | K47: 0 | L47: 0 | M47: 0 | N47: 0 | O47: 0 | P47: 0 | Q47: 9 | R47: 6 | S47: 66.66666667 | T47: 3 | U47: 33.33333333
A48: ORGANIZACIÓN SOCIAL ACTIVA | B48: 10 | C48: 6 | D48: 60 | E48: 4 | F48: 40 | G48: 0 | H48: 0 | I48: 0 | J48: 0 | K48: 0 | L48: 0 | M48: 0 | N48: 0 | O48: 0 | P48: 0 | Q48: 10 | R48: 6 | S48: 60 | T48: 4 | U48: 40
A49: DEL SOL | B49: 10 | C49: 4 | D49: 40 | E49: 6 | F49: 60 | G49: 0 | H49: 0 | I49: 0 | J49: 0 | K49: 0 | L49: 0 | M49: 0 | N49: 0 | O49: 0 | P49: 0 | Q49: 10 | R49: 4 | S49: 40 | T49: 6 | U49: 60
A50: BARBAREÑA (COALICIÓN) | B50: 9 | C50: 5 | D50: 55.55555556 | E50: 4 | F50: 44.44444444 | G50: 0 | H50: 0 | I50: 0 | J50: 0 | K50: 0 | L50: 0 | M50: 0 | N50: 0 | O50: 0 | P50: 0 | Q50: 9 | R50: 5 | S50: 55.55555556 | T50: 4 | U50: 44.44444444
A51: HEREDIA UNIDA (COALICIÓN) | B51: 14 | C51: 7 | D51: 50 | E51: 7 | F51: 50 | G51: 0 | H51: 0 | I51: 0 | J51: 0 | K51: 0 | L51: 0 | M51: 0 | N51: 0 | O51: 0 | P51: 0 | Q51: 14 | R51: 7 | S51: 50 | T51: 7 | U51: 50
A52: ALIANZA MAYOR | B52: 56 | C52: 29 | D52: 51.78571429 | E52: 27 | F52: 48.21428571 | G52: 0 | H52: 0 | I52: 0 | J52: 0 | K52: 0 | L52: 25 | M52: 13 | N52: =M52/L52*100 -> 52 | O52: 12 | P52: =O52/L52*100 -> 48 | Q52: 31 | R52: 16 | S52: 51.61290323 | T52: 15 | U52: 48.38709677
A53: INDEPENDIENTE BELEMITA | B53: 10 | C53: 4 | D53: 40 | E53: 6 | F53: 60 | G53: 0 | H53: 0 | I53: 0 | J53: 0 | K53: 0 | L53: 0 | M53: 0 | N53: 0 | O53: 0 | P53: 0 | Q53: 10 | R53: 4 | S53: 40 | T53: 6 | U53: 60
A54: ALAJUELENSE (COALICIÓN) | B54: 22 | C54: 11 | D54: 50 | E54: 11 | F54: 50 | G54: 0 | H54: 0 | I54: 0 | J54: 0 | K54: 0 | L54: 0 | M54: 0 | N54: 0 | O54: 0 | P54: 0 | Q54: 22 | R54: 11 | S54: 50 | T54: 11 | U54: 50
A55: ACCIÓN CIUDADANA | B55: 987 | C55: 503 | D55: 50.96251266 | E55: 484 | F55: 49.03748734 | G55: 3 | H55: 2 | I55: =H55/G55*100 -> 66.66666667 | J55: 1 | K55: =J55/G55*100 -> 33.33333333 | L55: 74 | M55: 38 | N55: =M55/L55*100 -> 51.35135135 | O55: 36 | P55: =O55/L55*100 -> 48.64864865 | Q55: 910 | R55: 463 | S55: 50.87912088 | T55: 447 | U55: 49.12087912
A56: LIGA RAMONENSE (COALICIÓN) | B56: 14 | C56: 8 | D56: 57.14285714 | E56: 6 | F56: 42.85714286 | G56: 0 | H56: 0 | I56: 0 | J56: 0 | K56: 0 | L56: 0 | M56: 0 | N56: 0 | O56: 0 | P56: 0 | Q56: 14 | R56: 8 | S56: 57.14285714 | T56: 6 | U56: 42.85714286
A57: TRANSPARENCIA CARTAGINÉS | B57: 9 | C57: 5 | D57: 55.55555556 | E57: 4 | F57: 44.44444444 | G57: 0 | H57: 0 | I57: 0 | J57: 0 | K57: 0 | L57: 9 | M57: 5 | N57: =M57/L57*100 -> 55.55555556 | O57: 4 | P57: =O57/L57*100 -> 44.44444444 | Q57: 0 | R57: 0 | S57: 0 | T57: 0 | U57: 0
A58: INTEGRACIÓN BARBAREÑA | B58: =+C58+E58 -> 10 | C58: =+H58+M58+R58 -> 5 | D58: =C58/B58*100 -> 50 | E58: =+J58+O58+T58 -> 5 | F58: =E58/B58*100 -> 50 | G58: =+H58+J58 -> 0 | H58: 0 | I58: 0 | J58: 0 | K58: 0 | L58: =+M58+O58 -> 0 | M58: 0 | N58: 0 | O58: 0 | P58: 0 | Q58: =+R58+T58 -> 10 | R58: 5 | S58: =R58/Q58*100 -> 50 | T58: 5 | U58: =T58/Q58*100 -> 50
A59: RESTAURACIÓN HEREDIANA | B59: =+C59+E59 -> 89 | C59: =+H59+M59+R59 -> 34 | D59: =C59/B59*100 -> 38.20224719 | E59: =+J59+O59+T59 -> 55 | F59: =E59/B59*100 -> 61.79775281 | G59: =+H59+J59 -> 0 | H59: 0 | I59: 0 | J59: 0 | K59: 0 | L59: =+M59+O59 -> 7 | M59: 4 | N59: =M59/L59*100 -> 57.14285714 | O59: 3 | P59: =O59/L59*100 -> 42.85714286 | Q59: =+R59+T59 -> 82 | R59: 30 | S59: =R59/Q59*100 -> 36.58536585 | T59: 52 | U59: =T59/Q59*100 -> 63.41463415
A60: ACCESIBILIDAD SIN EXCLUSIÓN | B60: 639 | C60: 287 | D60: 44.91392801 | E60: 352 | F60: 55.08607199 | G60: 3 | H60: 2 | I60: =H60/G60*100 -> 66.66666667 | J60: 1 | K60: =J60/G60*100 -> 33.33333333 | L60: 75 | M60: 37 | N60: =M60/L60*100 -> 49.33333333 | O60: 38 | P60: =O60/L60*100 -> 50.66666667 | Q60: 561 | R60: 248 | S60: 44.20677362 | T60: 313 | U60: 55.79322638
A61: YUNTA PROGRESISTA ESCAZUCEÑA | B61: 14 | C61: 7 | D61: 50 | E61: 7 | F61: 50 | G61: 0 | H61: 0 | I61: 0 | J61: 0 | K61: 0 | L61: 0 | M61: 0 | N61: 0 | O61: 0 | P61: 0 | Q61: 14 | R61: 7 | S61: 50 | T61: 7 | U61: 50
A62: FRENTE PATRIÓTICO POASEÑO (COALICIÓN) | B62: 10 | C62: 6 | D62: 60 | E62: 4 | F62: 40 | G62: 0 | H62: 0 | I62: 0 | J62: 0 | K62: 0 | L62: 0 | M62: 0 | N62: 0 | O62: 0 | P62: 0 | Q62: 10 | R62: 6 | S62: 60 | T62: 4 | U62: 40

Sheet 5.3
A2: CUADRO 5.3 COSTA RICA: CANDIDATOS(AS) A PRESIDENTE(A) Y VICEPRESIDENTES(AS), POR SEXO
A3: SEGÚN GRUPOS DE EDAD, ELECCIONES 7 DE FEBRERO 2010
A5: GRUPOS DE EDAD | B5: TOTAL | E5: PRESIDENTE(A) | H5: 1 º VICEPRESIDENTE(A) | K5: 2 º VICEPRESIDENTE(A)
B6: TOTAL | C6: H | D6: M | E6: TOTAL | F6: H | G6: M | H6: TOTAL | I6: H | J6: M | K6: TOTAL | L6: H | M6: M
A8: TOTAL | B8: =SUM(B10:B17) -> 27 | C8: 18 | D8: 9 | E8: 9 | F8: 7 | G8: 2 | H8: 9 | I8: 5 | J8: 4 | K8: 9 | L8: 6 | M8: 3
A10: 35 - 39 | B10: =+C10+D10 -> 1 | C10: =+F10+I10+L10 -> 1 | D10: =+G10+J10+M10 -> 0 | E10: =+F10+G10 -> 1 | F10: 1 | G10: 0 | H10: =+I10+J10 -> 0 | I10: 0 | J10: 0 | K10: =+L10+M10 -> 0 | L10: 0 | M10: 0
A11: 40 - 44 | B11: 2 | C11: 1 | D11: =+G11+J11+M11 -> 1 | E11: 0 | F11: 0 | G11: 0 | H11: 2 | I11: 1 | J11: 1 | K11: 0 | L11: 0 | M11: 0
A12: 45 - 49 | B12: 5 | C12: 5 | D12: =+G12+J12+M12 -> 0 | E12: 1 | F12: 1 | G12: 0 | H12: 1 | I12: 1 | J12: 0 | K12: 3 | L12: 3 | M12: 0
A13: 50 - 54 | B13: 7 | C13: 3 | D13: 4 | E13: 3 | F13: 2 | G13: 1 | H13: 2 | I13: 0 | J13: 2 | K13: 2 | L13: 1 | M13: 1
A14: 55 - 59 | B14: 5 | C14: 2 | D14: 3 | E14: 2 | F14: 1 | G14: 1 | H14: 1 | I14: 0 | J14: 1 | K14: 2 | L14: 1 | M14: 1
A15: 60 - 64 | B15: 5 | C15: 4 | D15: 1 | E15: 2 | F15: 2 | G15: 0 | H15: =+I15+J15 -> 1 | I15: 1 | J15: 0 | K15: =+L15+M15 -> 2 | L15: 1 | M15: 1
A16: 65 - 69 | B16: 1 | C16: 1 | D16: 0 | E16: 0 | F16: 0 | G16: 0 | H16: 1 | I16: 1 | J16: 0 | K16: 0 | L16: 0 | M16: 0
A17: 70 - 74 | B17: 1 | C17: 1 | D17: 0 | E17: 0 | F17: 0 | G17: 0 | H17: 1 | I17: 1 | J17: 0 | K17: 0 | L17: 0 | M17: 0

Sheet 5.4
A2: CUADRO 5.4 COSTA RICA: CANDIDATOS(AS) A DIPUTADOS(AS) EN PROPIEDAD Y SUPLENCIA, POR SEXO
A3: SEGÚN GRUPOS DE EDAD, ELECCIONES 7 DE FEBRERO 2010
A5: GRUPOS DE EDAD | B5: DIPUTADOS(AS) | E5: EN PROPIEDAD | H5: EN SUPLENCIA
B6: TOTAL | C6: HOMBRES | D6: MUJERES | E6: TOTAL | F6: HOMBRES | G6: MUJERES | H6: TOTAL | I6: HOMBRES | J6: MUJERES
A8: TOTAL | B8: =SUM(B10:B21) -> 789 | C8: 395 | D8: 394 | E8: 604 | F8: 306 | G8: 298 | H8: 185 | I8: 89 | J8: 96
A10: MENOS DE 25 | B10: =+C10+D10 -> 32 | C10: =F10+I10 -> 12 | D10: =G10+J10 -> 20 | E10: =+F10+G10 -> 21 | F10: 9 | G10: 12 | H10: =+I10+J10 -> 11 | I10: 3 | J10: 8
A11: 25 - 29 | B11: =+C11+D11 -> 58 | C11: =F11+I11 -> 19 | D11: =G11+J11 -> 39 | E11: =+F11+G11 -> 40 | F11: 13 | G11: 27 | H11: 18 | I11: 6 | J11: 12
A12: 30 - 34 | B12: 59 | C12: 17 | D12: 42 | E12: =+F12+G12 -> 41 | F12: 14 | G12: 27 | H12: 18 | I12: 3 | J12: 15
A13: 35 - 39 | B13: 65 | C13: 36 | D13: 29 | E13: =+F13+G13 -> 49 | F13: 28 | G13: 21 | H13: 16 | I13: 8 | J13: 8
A14: 40 - 44 | B14: 97 | C14: 44 | D14: 53 | E14: 68 | F14: 27 | G14: 41 | H14: 29 | I14: 17 | J14: 12
A15: 45 - 49 | B15: 123 | C15: 59 | D15: 64 | E15: 98 | F15: 51 | G15: 47 | H15: 25 | I15: 8 | J15: 17
A16: 50 - 54 | B16: 135 | C16: 74 | D16: 61 | E16: 116 | F16: 64 | G16: 52 | H16: 19 | I16: 10 | J16: 9
A17: 55 - 59 | B17: 109 | C17: 66 | D17: 43 | E17: 84 | F17: 49 | G17: 35 | H17: 25 | I17: 17 | J17: 8
A18: 60 - 64 | B18: 47 | C18: 29 | D18: 18 | E18: 39 | F18: 24 | G18: 15 | H18: 8 | I18: 5 | J18: 3
A19: 65 - 69 | B19: 41 | C19: 25 | D19: 16 | E19: 32 | F19: 18 | G19: 14 | H19: 9 | I19: 7 | J19: 2
A20: 70 - 74 | B20: 16 | C20: 9 | D20: 7 | E20: 13 | F20: 7 | G20: 6 | H20: 3 | I20: 2 | J20: 1
A21: 75 - 79 | B21: 7 | C21: 5 | D21: 2 | E21: 3 | F21: 2 | G21: 1 | H21: 4 | I21: 3 | J21: 1

Sheet 5.5
A1: CUADRO 5.5 COSTA RICA: CANDIDATOS(AS) A DIPUTADOS(AS) EN PROPIEDAD Y SUPLENCIA, POR SEXO
A2: SEGÚN PARTIDO, ELECCIONES 7 DE FEBRERO 2010
A3: (CIFRAS ABSOLUTAS Y RELATIVAS)
A5: PARTIDO | B5: DIPUTADOS(AS) | G5: EN PROPIEDAD | L5: EN SUPLENCIA
B6: TOTAL | C6: HOMBRES | E6: MUJERES | G6: TOTAL | H6: HOMBRES | J6: MUJERES | L6: TOTAL | M6: HOMBRES | O6: MUJERES
C7: ABS | D7: % | E7: ABS | F7: % | H7: ABS | I7: % | J7: ABS | K7: % | M7: ABS | N7: % | O7: ABS | P7: %
A9: TOTAL | B9: =SUM(B11:B28) -> 789 | C9: =SUM(C11:C28) -> 395 | D9: =C9/$B9*100 -> 50.06337136 | E9: =SUM(E11:E28) -> 394 | F9: =E9/$B9*100 -> 49.93662864 | G9: =SUM(G11:G28) -> 604 | H9: =SUM(H11:H28) -> 306 | I9: =H9/$G9*100 -> 50.66225166 | J9: =SUM(J11:J28) -> 298 | K9: =J9/$G9*100 -> 49.33774834 | L9: =SUM(L11:L28) -> 185 | M9: =SUM(M11:M28) -> 89 | N9: =M9/$L9*100 -> 48.10810811 | O9: =SUM(O11:O28) -> 96 | P9: =O9/$L9*100 -> 51.89189189
A11: UNIDAD SOCIAL CRISTIANA | B11: =+G11+L11 -> 75 | C11: =+H11+M11 -> 39 | D11: 52 | E11: =+J11+O11 -> 36 | F11: 48 | G11: =+H11+J11 -> 57 | H11: 29 | I11: =H11/$G11*100 -> 50.87719298 | J11: 28 | K11: =J11/$G11*100 -> 49.12280702 | L11: =+M11+O11 -> 18 | M11: 10 | N11: =M11/$L11*100 -> 55.55555556 | O11: 8 | P11: =O11/$L11*100 -> 44.44444444
A12: FUERZA FAMILIAR ALAJUELENSE | B12: =+G12+L12 -> 14 | C12: =+H12+M12 -> 7 | D12: 50 | E12: =+J12+O12 -> 7 | F12: 50 | G12: =+H12+J12 -> 11 | H12: 5 | I12: 0 | J12: 6 | K12: 0 | L12: =+M12+O12 -> 3 | M12: 2 | N12: 66.66666667 | O12: 1 | P12: 33.33333333
A13: INTEGRACIÓN NACIONAL | B13: =+G13+L13 -> 74 | C13: =+H13+M13 -> 35 | D13: 47.2972973 | E13: =+J13+O13 -> 39 | F13: 52.7027027 | G13: =+H13+J13 -> 56 | H13: 27 | I13: 0 | J13: 29 | K13: 0 | L13: =+M13+O13 -> 18 | M13: 8 | N13: 44.44444444 | O13: 10 | P13: 55.55555556
A14: VERDE ECOLOGISTA | B14: 9 | C14: 4 | D14: 44.44444444 | E14: 5 | F14: 55.55555556 | G14: 7 | H14: 3 | I14: 0 | J14: 4 | K14: 0 | L14: 2 | M14: 1 | N14: 50 | O14: 1 | P14: 50
A15: ALIANZA PATRIÓTICA | B15: 73 | C15: 36 | D15: 49.31506849 | E15: 37 | F15: 50.68493151 | G15: 57 | H15: 29 | I15: 0 | J15: 28 | K15: 0 | L15: 16 | M15: 7 | N15: 43.75 | O15: 9 | P15: 56.25
A16: RENOVACIÓN COSTARRICENSE | B16: 75 | C16: 35 | D16: 46.66666667 | E16: 40 | F16: 53.33333333 | G16: 57 | H16: 28 | I16: =H16/$G16*100 -> 49.12280702 | J16: 29 | K16: =J16/$G16*100 -> 50.87719298 | L16: 18 | M16: 7 | N16: 38.88888889 | O16: 11 | P16: 61.11111111
A17: FRENTE AMPLIO | B17: 74 | C17: 37 | D17: 50 | E17: 37 | F17: 50 | G17: 57 | H17: 29 | I17: 0 | J17: 28 | K17: 0 | L17: 17 | M17: 8 | N17: 47.05882353 | O17: 9 | P17: 52.94117647
A18: LIBERACIÓN NACIONAL | B18: 75 | C18: 41 | D18: 54.66666667 | E18: 34 | F18: 45.33333333 | G18: 57 | H18: 32 | I18: 0 | J18: 25 | K18: 0 | L18: 18 | M18: 9 | N18: 50 | O18: 9 | P18: 50
A19: UNIÓN AGRÍCOLA CARTAGINÉS | B19: 9 | C19: 5 | D19: 55.55555556 | E19: 4 | F19: 44.44444444 | G19: 7 | H19: 5 | I19: 0 | J19: 2 | K19: 0 | L19: 2 | M19: 0 | N19: 0 | O19: 2 | P19: 100
A20: RESTAURACIÓN ALAJUELENSE | B20: 14 | C20: 8 | D20: 57.14285714 | E20: 6 | F20: 42.85714286 | G20: 11 | H20: 6 | I20: 0 | J20: 5 | K20: 0 | L20: 3 | M20: 2 | N20: 66.66666667 | O20: 1 | P20: 33.33333333
A21: MOVIMIENTO LIBERTARIO | B21: 75 | C21: 36 | D21: 48 | E21: 39 | F21: 52 | G21: 57 | H21: 27 | I21: 0 | J21: 30 | K21: 0 | L21: 18 | M21: 9 | N21: 50 | O21: 9 | P21: 50
A22: RESTAURACIÓN NACIONAL | B22: 25 | C22: 12 | D22: 48 | E22: 13 | F22: 52 | G22: 20 | H22: 10 | I22: =H22/$G22*100 -> 50 | J22: 10 | K22: =J22/$G22*100 -> 50 | L22: 5 | M22: 2 | N22: 40 | O22: 3 | P22: 60
A23: MOVIMIENTO DE TRABAJADORES Y CAMPESINOS | B23: 7 | C23: 3 | D23: 42.85714286 | E23: 4 | F23: 57.14285714 | G23: 5 | H23: 2 | I23: 0 | J23: 3 | K23: 0 | L23: 2 | M23: 1 | N23: 50 | O23: 1 | P23: 50
A24: ALIANZA MAYOR | B24: 25 | C24: 13 | D24: 52 | E24: 12 | F24: 48 | G24: 20 | H24: 10 | I24: 0 | J24: 10 | K24: 0 | L24: 5 | M24: 3 | N24: 60 | O24: 2 | P24: 40
A25: ACCIÓN CIUDADANA | B25: 74 | C25: 38 | D25: 51.35135135 | E25: 36 | F25: 48.64864865 | G25: 56 | H25: 29 | I25: 0 | J25: 27 | K25: 0 | L25: 18 | M25: 9 | N25: 50 | O25: 9 | P25: 50
A26: TRANSPARENCIA CARTAGINÉS | B26: 9 | C26: 5 | D26: 55.55555556 | E26: 4 | F26: 44.44444444 | G26: 7 | H26: 4 | I26: 0 | J26: 3 | K26: 0 | L26: 2 | M26: 1 | N26: 50 | O26: 1 | P26: 50
A27: RESTAURACIÓN HEREDIANA | B27: 7 | C27: 4 | D27: 57.14285714 | E27: 3 | F27: 42.85714286 | G27: 5 | H27: 3 | I27: 0 | J27: 2 | K27: 0 | L27: 2 | M27: 1 | N27: 50 | O27: 1 | P27: 50
A28: ACCESIBILIDAD SIN EXCLUSIÓN | B28: 75 | C28: 37 | D28: 49.33333333 | E28: 38 | F28: 50.66666667 | G28: 57 | H28: 28 | I28: 0 | J28: 29 | K28: 0 | L28: 18 | M28: 9 | N28: 50 | O28: 9 | P28: 50

Sheet 5.6
A1: CUADRO 5.6 COSTA RICA: CANDIDATOS(AS) A DIPUTADOS(AS) EN PROPIEDAD, POR NÚMERO DE PUESTO EN PAPELETA Y SEXO
A2: SEGÚN PARTIDO, ELECCIONES 7 DE FEBRERO 2010
A3: (CIFRAS ABSOLUTAS Y RELATIVAS)
A5: PARTIDO | B5: DIPUTADOS(AS) | E5: PUESTO 1 | H5: PUESTO 2 | K5: PUESTO 3 | N5: PUESTO 4 | Q5: PUESTO 5 | T5: PUESTO 6 Y MÁS
B6: T | C6: H | D6: M | E6: T | F6: H | G6: M | H6: T | I6: H | J6: M | K6: T | L6: H | M6: M | N6: T | O6: H | P6: M | Q6: T | R6: H | S6: M | T6: T | U6: H | V6: M
A8: TOTAL ABSOLUTO | B8: =SUM(B10:B27) -> 604 | C8: 306 | D8: 298 | E8: 72 | F8: 58 | G8: 14 | H8: 72 | I8: 32 | J8: 40 | K8: 72 | L8: 34 | M8: 38 | N8: 71 | O8: 33 | P8: 38 | Q8: 63 | R8: 33 | S8: 30 | T8: 254 | U8: 116 | V8: 138
A10: UNIDAD SOCIAL CRISTIANA | B10: =E10+H10+K10+N10+Q10+T10 -> 57 | C10: =F10+I10+L10+O10+R10+U10 -> 29 | D10: =G10+J10+M10+P10+S10+V10 -> 28 | E10: =+F10+G10 -> 7 | F10: 5 | G10: 2 | H10: =+I10+J10 -> 7 | I10: 4 | J10: 3 | K10: =+L10+M10 -> 7 | L10: 1 | M10: 6 | N10: =+O10+P10 -> 7 | O10: 4 | P10: 3 | Q10: =+R10+S10 -> 6 | R10: 4 | S10: 2 | T10: =+U10+V10 -> 23 | U10: 11 | V10: 12
A11: FUERZA FAMILIAR ALAJUELENSE | B11: =E11+H11+K11+N11+Q11+T11 -> 11 | C11: =F11+I11+L11+O11+R11+U11 -> 5 | D11: =G11+J11+M11+P11+S11+V11 -> 6 | E11: =+F11+G11 -> 1 | F11: 1 | G11: 0 | H11: =+I11+J11 -> 1 | I11: 1 | J11: 0 | K11: 1 | L11: 0 | M11: 1 | N11: =+O11+P11 -> 1 | O11: 0 | P11: 1 | Q11: =+R11+S11 -> 1 | R11: 0 | S11: 1 | T11: =+U11+V11 -> 6 | U11: 3 | V11: 3
A12: INTEGRACIÓN NACIONAL | B12: 56 | C12: 27 | D12: 29 | E12: 7 | F12: 7 | G12: 0 | H12: 7 | I12: 3 | J12: 4 | K12: 7 | L12: 3 | M12: 4 | N12: 6 | O12: 3 | P12: 3 | Q12: 6 | R12: 3 | S12: 3 | T12: 23 | U12: 8 | V12: 15
A13: VERDE ECOLOGISTA | B13: 7 | C13: 3 | D13: 4 | E13: 1 | F13: 1 | G13: 0 | H13: 1 | I13: 1 | J13: 0 | K13: 1 | L13: 0 | M13: 1 | N13: 1 | O13: 1 | P13: 0 | Q13: 1 | R13: 0 | S13: 1 | T13: 2 | U13: 0 | V13: 2
A14: ALIANZA PATRIÓTICA | B14: 57 | C14: 29 | D14: 28 | E14: 7 | F14: 7 | G14: 0 | H14: 7 | I14: 3 | J14: 4 | K14: 7 | L14: 3 | M14: 4 | N14: 7 | O14: 4 | P14: 3 | Q14: 6 | R14: 3 | S14: 3 | T14: 23 | U14: 9 | V14: 14
A15: RENOVACIÓN COSTARRICENSE | B15: 57 | C15: 28 | D15: 29 | E15: 7 | F15: 6 | G15: 1 | H15: 7 | I15: 6 | J15: 1 | K15: 7 | L15: 1 | M15: 6 | N15: 7 | O15: 3 | P15: 4 | Q15: 6 | R15: 2 | S15: 4 | T15: 23 | U15: 10 | V15: 13
A16: FRENTE AMPLIO | B16: 57 | C16: 29 | D16: 28 | E16: 7 | F16: 6 | G16: 1 | H16: 7 | I16: 1 | J16: 6 | K16: 7 | L16: 6 | M16: 1 | N16: 7 | O16: 1 | P16: 6 | Q16: 6 | R16: 4 | S16: 2 | T16: 23 | U16: 11 | V16: 12
A17: LIBERACIÓN NACIONAL | B17: 57 | C17: 32 | D17: 25 | E17: 7 | F17: 6 | G17: 1 | H17: 7 | I17: 1 | J17: 6 | K17: 7 | L17: 4 | M17: 3 | N17: 7 | O17: 3 | P17: 4 | Q17: 6 | R17: 6 | S17: 0 | T17: 23 | U17: 12 | V17: 11
A18: UNIÓN AGRÍCOLA CARTAGINÉS | B18: 7 | C18: 5 | D18: 2 | E18: 1 | F18: 1 | G18: 0 | H18: 1 | I18: 0 | J18: 1 | K18: 1 | L18: 1 | M18: 0 | N18: 1 | O18: 1 | P18: 0 | Q18: 1 | R18: 1 | S18: 0 | T18: 2 | U18: 1 | V18: 1
A19: RESTAURACIÓN ALAJUELENSE | B19: 11 | C19: 6 | D19: 5 | E19: 1 | F19: 1 | G19: 0 | H19: 1 | I19: 1 | J19: 0 | K19: 1 | L19: 0 | M19: 1 | N19: 1 | O19: 1 | P19: 0 | Q19: 1 | R19: 1 | S19: 0 | T19: 6 | U19: 2 | V19: 4
A20: MOVIMIENTO LIBERTARIO | B20: 57 | C20: 27 | D20: 30 | E20: 7 | F20: 5 | G20: 2 | H20: 7 | I20: 1 | J20: 6 | K20: 7 | L20: 7 | M20: 0 | N20: 7 | O20: 2 | P20: 5 | Q20: 6 | R20: 2 | S20: 4 | T20: 23 | U20: 10 | V20: 13
A21: RESTAURACIÓN NACIONAL | B21: 20 | C21: 10 | D21: 10 | E21: 1 | F21: 1 | G21: 0 | H21: 1 | I21: 1 | J21: 0 | K21: 1 | L21: 0 | M21: 1 | N21: 1 | O21: 1 | P21: 0 | Q21: 1 | R21: 0 | S21: 1 | T21: 15 | U21: 7 | V21: 8
A22: MOVIMIENTO DE TRABAJADORES Y CAMPESINOS | B22: 5 | C22: 2 | D22: 3 | E22: 1 | F22: 1 | G22: 0 | H22: 1 | I22: 0 | J22: 1 | K22: 1 | L22: 1 | M22: 0 | N22: 1 | O22: 0 | P22: 1 | Q22: 1 | R22: 0 | S22: 1 | T22: 0 | U22: 0 | V22: 0
A23: ALIANZA MAYOR | B23: 20 | C23: 10 | D23: 10 | E23: 1 | F23: 1 | G23: 0 | H23: 1 | I23: 1 | J23: 0 | K23: 1 | L23: 0 | M23: 1 | N23: 1 | O23: 1 | P23: 0 | Q23: 1 | R23: 0 | S23: 1 | T23: 15 | U23: 7 | V23: 8
A24: ACCIÓN CIUDADANA | B24: 56 | C24: 29 | D24: 27 | E24: 7 | F24: 3 | G24: 4 | H24: 7 | I24: 4 | J24: 3 | K24: 7 | L24: 3 | M24: 4 | N24: 7 | O24: 4 | P24: 3 | Q24: 6 | R24: 3 | S24: 3 | T24: 22 | U24: 12 | V24: 10
A25: TRANSPARENCIA CARTAGINÉS | B25: 7 | C25: 4 | D25: 3 | E25: 1 | F25: 0 | G25: 1 | H25: 1 | I25: 1 | J25: 0 | K25: 1 | L25: 0 | M25: 1 | N25: 1 | O25: 1 | P25: 0 | Q25: 1 | R25: 0 | S25: 1 | T25: 2 | U25: 2 | V25: 0
A26: RESTAURACIÓN HEREDIANA | B26: 5 | C26: 3 | D26: 2 | E26: 1 | F26: 1 | G26: 0 | H26: 1 | I26: 1 | J26: 0 | K26: 1 | L26: 0 | M26: 1 | N26: 1 | O26: 0 | P26: 1 | Q26: 1 | R26: 1 | S26: 0 | T26: 0 | U26: 0 | V26: 0
A27: ACCESIBILIDAD SIN EXCLUSIÓN | B27: 57 | C27: 28 | D27: 29 | E27: =+F27+G27 -> 7 | F27: 5 | G27: 2 | H27: =+I27+J27 -> 7 | I27: 2 | J27: 5 | K27: 7 | L27: 4 | M27: 3 | N27: =+O27+P27 -> 7 | O27: 3 | P27: 4 | Q27: =+R27+S27 -> 6 | R27: 3 | S27: 3 | T27: =+U27+V27 -> 23 | U27: 11 | V27: 12
A29: TOTAL RELATIVO | B29: =SUM(C29:D29) -> 100 | C29: =C8/$B8*100 -> 50.66225166 | D29: =D8/$B8*100 -> 49.33774834 | E29: =SUM(F29:G29) -> 100 | F29: =F8/$E8*100 -> 80.55555556 | G29: =G8/$E8*100 -> 19.44444444 | H29: =SUM(I29:J29) -> 100 | I29: =I8/$H8*100 -> 44.44444444 | J29: =J8/$H8*100 -> 55.55555556 | K29: =SUM(L29:M29) -> 100 | L29: =L8/$K8*100 -> 47.22222222 | M29: =M8/$K8*100 -> 52.77777778 | N29: =SUM(O29:P29) -> 100 | O29: =O8/$N8*100 -> 46.47887324 | P29: =P8/$N8*100 -> 53.52112676 | Q29: =SUM(R29:S29) -> 100 | R29: =R8/$Q8*100 -> 52.38095238 | S29: =S8/$Q8*100 -> 47.61904762 | T29: =SUM(U29:V29) -> 100 | U29: =U8/$T8*100 -> 45.66929134 | V29: =V8/$T8*100 -> 54.33070866
A31: UNIDAD SOCIAL CRISTIANA | B31: =SUM(C31:D31) -> 100 | C31: =C10/$B10*100 -> 50.87719298 | D31: 49.12280702 | E31: =SUM(F31:G31) -> 100 | F31: =F10/$E10*100 -> 71.42857143 | G31: 28.57142857 | H31: =SUM(I31:J31) -> 100 | I31: =I10/$H10*100 -> 57.14285714 | J31: 42.85714286 | K31: =SUM(L31:M31) -> 100 | L31: =L10/$K10*100 -> 14.28571429 | M31: 85.71428571 | N31: =SUM(O31:P31) -> 100 | O31: =O10/$N10*100 -> 57.14285714 | P31: 42.85714286 | Q31: =SUM(R31:S31) -> 100 | R31: =R10/$Q10*100 -> 66.66666667 | S31: 33.33333333 | T31: =SUM(U31:V31) -> 100 | U31: =U10/$T10*100 -> 47.82608696 | V31: 52.17391304
A32: FUERZA FAMILIAR ALAJUELENSE | B32: =SUM(C32:D32) -> 100 | C32: 45.45454545 | D32: 54.54545455 | E32: =SUM(F32:G32) -> 100 | F32: 100 | G32: 0 | H32: =SUM(I32:J32) -> 100 | I32: 100 | J32: 0 | K32: =SUM(L32:M32) -> 100 | L32: 0 | M32: 100 | N32: =SUM(O32:P32) -> 100 | O32: 0 | P32: 100 | Q32: =SUM(R32:S32) -> 100 | R32: 0 | S32: 100 | T32: 100 | U32: 50 | V32: 50
A33: INTEGRACIÓN NACIONAL | B33: 100 | C33: 48.21428571 | D33: 51.78571429 | E33: 100 | F33: 100 | G33: 0 | H33: 100 | I33: 42.85714286 | J33: 57.14285714 | K33: 100 | L33: 42.85714286 | M33: 57.14285714 | N33: 100 | O33: 50 | P33: 50 | Q33: 100 | R33: 50 | S33: 50 | T33: 100 | U33: 34.7826087 | V33: 65.2173913
A34: VERDE ECOLOGISTA | B34: 100 | C34: 42.85714286 | D34: 57.14285714 | E34: 100 | F34: 100 | G34: 0 | H34: 100 | I34: 100 | J34: 0 | K34: 100 | L34: 0 | M34: 100 | N34: 100 | O34: 100 | P34: 0 | Q34: 100 | R34: 0 | S34: 100 | T34: 100 | U34: 0 | V34: 100
A35: ALIANZA PATRIÓTICA | B35: 100 | C35: 50.87719298 | D35: 49.12280702 | E35: 100 | F35: 100 | G35: 0 | H35: 100 | I35: 42.85714286 | J35: 57.14285714 | K35: 100 | L35: 42.85714286 | M35: 57.14285714 | N35: 100 | O35: 57.14285714 | P35: 42.85714286 | Q35: 100 | R35: 50 | S35: 50 | T35: 100 | U35: 39.13043478 | V35: 60.86956522
A36: RENOVACIÓN COSTARRICENSE | B36: 100 | C36: 49.12280702 | D36: 50.87719298 | E36: 100 | F36: 85.71428571 | G36: 14.28571429 | H36: 100 | I36: 85.71428571 | J36: 14.28571429 | K36: 100 | L36: 14.28571429 | M36: 85.71428571 | N36: 100 | O36: 42.85714286 | P36: 57.14285714 | Q36: 100 | R36: 33.33333333 | S36: 66.66666667 | T36: 100 | U36: 43.47826087 | V36: 56.52173913
A37: FRENTE AMPLIO | B37: 100 | C37: 50.87719298 | D37: 49.12280702 | E37: 100 | F37: 85.71428571 | G37: 14.28571429 | H37: 100 | I37: 14.28571429 | J37: 85.71428571 | K37: 100 | L37: 85.71428571 | M37: 14.28571429 | N37: 100 | O37: 14.28571429 | P37: 85.71428571 | Q37: 100 | R37: 66.66666667 | S37: 33.33333333 | T37: 100 | U37: 47.82608696 | V37: 52.17391304
A38: LIBERACIÓN NACIONAL | B38: 100 | C38: 56.14035088 | D38: 43.85964912 | E38: 100 | F38: 85.71428571 | G38: 14.28571429 | H38: 100 | I38: 14.28571429 | J38: 85.71428571 | K38: 100 | L38: 57.14285714 | M38: 42.85714286 | N38: 100 | O38: 42.85714286 | P38: 57.14285714 | Q38: 100 | R38: 100 | S38: 0 | T38: 100 | U38: 52.17391304 | V38: 47.82608696
A39: UNIÓN AGRÍCOLA CARTAGINÉS | B39: 100 | C39: 71.42857143 | D39: 28.57142857 | E39: 100 | F39: 100 | G39: 0 | H39: 100 | I39: 0 | J39: 100 | K39: 100 | L39: 100 | M39: 0 | N39: 100 | O39: 100 | P39: 0 | Q39: 100 | R39: 100 | S39: 0 | T39: 100 | U39: 50 | V39: 50
A40: RESTAURACIÓN ALAJUELENSE | B40: 100 | C40: 54.54545455 | D40: 45.45454545 | E40: 100 | F40: 100 | G40: 0 | H40: 100 | I40: 100 | J40: 0 | K40: 100 | L40: 0 | M40: 100 | N40: 100 | O40: 100 | P40: 0 | Q40: 100 | R40: 100 | S40: 0 | T40: 100 | U40: 33.33333333 | V40: 66.66666667
A41: MOVIMIENTO LIBERTARIO | B41: 100 | C41: 47.36842105 | D41: 52.63157895 | E41: 100 | F41: 71.42857143 | G41: 28.57142857 | H41: 100 | I41: 14.28571429 | J41: 85.71428571 | K41: 100 | L41: 100 | M41: 0 | N41: 100 | O41: 28.57142857 | P41: 71.42857143 | Q41: 100 | R41: 33.33333333 | S41: 66.66666667 | T41: =SUM(U41:V41) -> 100 | U41: =U20/$T20*100 -> 43.47826087 | V41: 56.52173913
A42: RESTAURACIÓN NACIONAL | B42: 100 | C42: 50 | D42: 50 | E42: 100 | F42: 100 | G42: 0 | H42: 100 | I42: 100 | J42: 0 | K42: 100 | L42: 0 | M42: 100 | N42: 100 | O42: 100 | P42: 0 | Q42: 100 | R42: 0 | S42: 100 | T42: 100 | U42: 46.66666667 | V42: 53.33333333
A43: MOVIMIENTO DE TRABAJADORES Y CAMPESINOS | B43: 100 | C43: 40 | D43: 60 | E43: 100 | F43: 100 | G43: 0 | H43: 100 | I43: 0 | J43: 100 | K43: 100 | L43: 100 | M43: 0 | N43: 100 | O43: 0 | P43: 100 | Q43: 100 | R43: 0 | S43: 100 | T43: 0 | U43: 0 | V43: 0
A44: ALIANZA MAYOR | B44: 100 | C44: 50 | D44: 50 | E44: 100 | F44: 100 | G44: 0 | H44: 100 | I44: 100 | J44: 0 | K44: 100 | L44: 0 | M44: 100 | N44: 100 | O44: 100 | P44: 0 | Q44: 100 | R44: 0 | S44: 100 | T44: 100 | U44: 46.66666667 | V44: 53.33333333
A45: ACCIÓN CIUDADANA | B45: 100 | C45: 51.78571429 | D45: 48.21428571 | E45: 100 | F45: 42.85714286 | G45: 57.14285714 | H45: 100 | I45: 57.14285714 | J45: 42.85714286 | K45: 100 | L45: 42.85714286 | M45: 57.14285714 | N45: 100 | O45: 57.14285714 | P45: 42.85714286 | Q45: 100 | R45: 50 | S45: 50 | T45: 100 | U45: 54.54545455 | V45: 45.45454545
A46: TRANSPARENCIA CARTAGINÉS | B46: 100 | C46: 57.14285714 | D46: 42.85714286 | E46: 100 | F46: 0 | G46: 100 | H46: 100 | I46: 100 | J46: 0 | K46: 100 | L46: 0 | M46: 100 | N46: 100 | O46: 100 | P46: 0 | Q46: 100 | R46: 0 | S46: 100 | T46: 100 | U46: 100 | V46: 0
A47: RESTAURACIÓN HEREDIANA | B47: 100 | C47: 60 | D47: 40 | E47: 100 | F47: 100 | G47: 0 | H47: 100 | I47: 100 | J47: 0 | K47: 100 | L47: 0 | M47: 100 | N47: 100 | O47: 0 | P47: 100 | Q47: 100 | R47: 100 | S47: 0 | T47: 0 | U47: 0 | V47: 0
A48: ACCESIBILIDAD SIN EXCLUSIÓN | B48: 100 | C48: 49.12280702 | D48: 50.87719298 | E48: 100 | F48: 71.42857143 | G48: 28.57142857 | H48: 100 | I48: 28.57142857 | J48: 71.42857143 | K48: 100 | L48: 57.14285714 | M48: 42.85714286 | N48: 100 | O48: 42.85714286 | P48: 57.14285714 | Q48: 100 | R48: 50 | S48: 50 | T48: 100 | U48: 47.82608696 | V48: 52.17391304

Sheet 5.7
A2: CUADRO 5.7 COSTA RICA: DIPUTADOS(AS) ELECTOS(AS), POR SEXO
A3: SEGÚN PARTIDO, ELECCIONES 7 DE FEBRERO 2010
A4: (CIFRAS ABSOLUTAS Y RELATIVAS)
A6: PARTIDO | B6: TOTAL | C6: HOMBRES | E6: MUJERES
C7: ABSOLUTO | D7: % | E7: ABSOLUTO | F7: %
A9: TOTAL | B9: =SUM(B11:B18) -> 57 | C9: =SUM(C11:C18) -> 35 | D9: =+C9/B9*100 -> 61.40350877 | E9: =SUM(E11:E18) -> 22 | F9: =+E9/B9*100 -> 38.59649123
A11: UNIDAD SOCIAL CRISTIANA | B11: =+C11+E11 -> 6 | C11: 5 | D11: =+C11/B11*100 -> 83.33333333 | E11: 1 | F11: =+E11/B11*100 -> 16.66666667
A12: RENOVACIÓN COSTARRICENSE | B12: 1 | C12: 1 | D12: 100 | E12: 0 | F12: =+E12/B12*100 -> 0
A13: FRENTE AMPLIO | B13: 1 | C13: 1 | D13: 100 | E13: 0 | F13: 0
A14: LIBERACIÓN NACIONAL | B14: 24 | C14: 13 | D14: 54.16666667 | E14: 11 | F14: 45.83333333
A15: MOVIMIENTO LIBERTARIO | B15: 9 | C15: 5 | D15: 55.55555556 | E15: 4 | F15: 44.44444444
A16: RESTAURACIÓN NACIONAL | B16: 1 | C16: 1 | D16: 100 | E16: 0 | F16: 0
A17: ACCIÓN CIUDADANA | B17: 11 | C17: 6 | D17: 54.54545455 | E17: 5 | F17: 45.45454545
A18: ACCESIBILIDAD SIN EXCLUSIÓN | B18: 4 | C18: 3 | D18: 75 | E18: 1 | F18: 25

Sheet 5.8
A2: CUADRO 5.8 COSTA RICA: CANDIDATOS(AS) A REGIDORES(AS) EN PROPIEDAD Y SUPLENCIA, POR SEXO
A3: SEGÚN GRUPOS DE EDAD, ELECCIONES 7 DE FEBRERO 2010
A5: GRUPOS DE EDAD | B5: REGIDORES(AS) | E5: EN PROPIEDAD | H5: EN SUPLENCIA
B6: TOTAL | C6: HOMBRES | D6: MUJERES | E6: TOTAL | F6: HOMBRES | G6: MUJERES | H6: TOTAL | I6: HOMBRES | J6: MUJERES
A8: TOTAL | B8: =SUM(B10:B23) -> 7234 | C8: 3504 | D8: 3730 | E8: 3663 | F8: 1843 | G8: 1820 | H8: 3571 | I8: 1661 | J8: 1910
A10: MENOS DE 25 | B10: =+C10+D10 -> 590 | C10: =+F10+I10 -> 235 | D10: =+G10+J10 -> 355 | E10: =+F10+G10 -> 263 | F10: 95 | G10: 168 | H10: =+I10+J10 -> 327 | I10: 140 | J10: 187
A11: 25 - 29 | B11: 609 | C11: 248 | D11: 361 | E11: 291 | F11: 128 | G11: 163 | H11: 318 | I11: 120 | J11: 198
A12: 30 - 34 | B12: 600 | C12: 238 | D12: 362 | E12: 281 | F12: 120 | G12: 161 | H12: 319 | I12: 118 | J12: 201
A13: 35 - 39 | B13: 752 | C13: 326 | D13: 426 | E13: 379 | F13: 166 | G13: 213 | H13: 373 | I13: 160 | J13: 213
A14: 40 - 44 | B14: 973 | C14: 428 | D14: 545 | E14: 490 | F14: 230 | G14: 260 | H14: 483 | I14: 198 | J14: 285
A15: 45 - 49 | B15: 1115 | C15: 545 | D15: 570 | E15: 581 | F15: 292 | G15: 289 | H15: 534 | I15: 253 | J15: 281
A16: 50 - 54 | B16: 1022 | C16: 537 | D16: 485 | E16: 556 | F16: 304 | G16: 252 | H16: 466 | I16: 233 | J16: 233
A17: 55 - 59 | B17: 740 | C17: 425 | D17: 315 | E17: 385 | F17: 227 | G17: 158 | H17: 355 | I17: 198 | J17: 157
A18: 60 - 64 | B18: 400 | C18: 240 | D18: 160 | E18: 224 | F18: 138 | G18: 86 | H18: 176 | I18: 102 | J18: 74
A19: 65 - 69 | B19: 231 | C19: 155 | D19: 76 | E19: 108 | F19: 71 | G19: 37 | H19: 123 | I19: 84 | J19: 39
A20: 70 - 74 | B20: 117 | C20: 72 | D20: 45 | E20: 61 | F20: 42 | G20: 19 | H20: 56 | I20: 30 | J20: 26
A21: 75 - 79 | B21: 59 | C21: 38 | D21: 21 | E21: 28 | F21: 17 | G21: 11 | H21: 31 | I21: 21 | J21: 10
A22: 80 - 84 | B22: 21 | C22: 14 | D22: 7 | E22: 12 | F22: 10 | G22: 2 | H22: 9 | I22: 4 | J22: 5
A23: 85 Y MÁS | B23: 5 | C23: 3 | D23: 2 | E23: 4 | F23: 3 | G23: 1 | H23: 1 | I23: 0 | J23: 1

Sheet 5.9
A1: CUADRO 5.9 COSTA RICA: CANDIDATOS(AS) A REGIDORES(AS) EN PROPIEDAD Y SUPLENCIA, POR SEXO
A2: SEGÚN PROVINCIA, ELECCIONES 7 DE FEBRERO 2010
A3: (CIFRAS ABSOLUTAS Y RELATIVAS)
A5: PROVINCIA | B5: REGIDORES(AS) | G5: EN PROPIEDAD | L5: EN SUPLENCIA
B6: TOTAL | C6: HOMBRES | E6: MUJERES | G6: TOTAL | H6: HOMBRES | J6: MUJERES | L6: TOTAL | M6: HOMBRES | O6: MUJERES
C7: ABS | D7: % | E7: ABS | F7: % | H7: ABS | I7: % | J7: ABS | K7: % | M7: ABS | N7: % | O7: ABS | P7: %
A9: TOTAL | B9: =SUM(B11:B17) -> 7234 | C9: =SUM(C11:C17) -> 3504 | D9: =C9/B9*100 -> 48.43793199 | E9: =SUM(E11:E17) -> 3730 | F9: =E9/B9*100 -> 51.56206801 | G9: =SUM(G11:G17) -> 3663 | H9: =SUM(H11:H17) -> 1843 | I9: =H9/$G9*100 -> 50.31395031 | J9: =SUM(J11:J17) -> 1820 | K9: =J9/G9*100 -> 49.68604969 | L9: =SUM(L11:L17) -> 3571 | M9: =SUM(M11:M17) -> 1661 | N9: =M9/L9*100 -> 46.51358163 | O9: =SUM(O11:O17) -> 1910 | P9: =O9/$L9*100 -> 53.48641837
A11: SAN JOSÉ | B11: =G11+L11 -> 2175 | C11: 1013 | D11: =C11/$B11*100 -> 46.57471264 | E11: =J11+O11 -> 1162 | F11: =E11/B11*100 -> 53.42528736 | G11: =+H11+J11 -> 1115 | H11: 541 | I11: =H11/$G11*100 -> 48.52017937 | J11: 574 | K11: =J11/$G11*100 -> 51.47982063 | L11: =+M11+O11 -> 1060 | M11: 472 | N11: =M11/$L11*100 -> 44.52830189 | O11: 588 | P11: =O11/$L11*100 -> 55.47169811
A12: ALAJUELA | B12: 1177 | C12: =H12+M12 -> 610 | D12: 51.82667799 | E12: 567 | F12: 48.17332201 | G12: =+H12+J12 -> 593 | H12: 321 | I12: 54.13153457 | J12: 272 | K12: 45.86846543 | L12: =+M12+O12 -> 584 | M12: 289 | N12: 49.48630137 | O12: 295 | P12: 50.51369863
A13: CARTAGO | B13: 779 | C13: 372 | D13: 47.75353017 | E13: 407 | F13: 52.24646983 | G13: 389 | H13: 191 | I13: 49.10025707 | J13: 198 | K13: 50.89974293 | L13: 390 | M13: 181 | N13: 46.41025641 | O13: 209 | P13: 53.58974359
A14: HEREDIA | B14: 818 | C14: 379 | D14: 46.33251834 | E14: 439 | F14: 53.66748166 | G14: 413 | H14: 192 | I14: 46.48910412 | J14: 221 | K14: 53.51089588 | L14: 405 | M14: 187 | N14: 46.17283951 | O14: 218 | P14: 53.82716049
A15: GUANACASTE | B15: 739 | C15: 371 | D15: 50.202977 | E15: 368 | F15: 49.797023 | G15: 374 | H15: 192 | I15: 51.3368984 | J15: 182 | K15: 48.6631016 | L15: 365 | M15: 179 | N15: 49.04109589 | O15: 186 | P15: 50.95890411
A16: PUNTARENAS | B16: 802 | C16: 405 | D16: 50.49875312 | E16: 397 | F16: 49.50124688 | G16: 402 | H16: 213 | I16: 52.98507463 | J16: 189 | K16: 47.01492537 | L16: 400 | M16: 192 | N16: 48 | O16: 208 | P16: 52
A17: LIMÓN | B17: 744 | C17: 354 | D17: 47.58064516 | E17: 390 | F17: 52.41935484 | G17: 377 | H17: 193 | I17: 51.19363395 | J17: 184 | K17: 48.80636605 | L17: 367 | M17: 161 | N17: 43.86920981 | O17: 206 | P17: 56.13079019

Sheet 5.10
A1: CUADRO 5.10 COSTA RICA: CANDIDATOS(AS) A REGIDORES(AS) EN PROPIEDAD Y SUPLENCIA
A2: POR SEXO, SEGÚN PARTIDO, ELECCIONES 7 DE FEBRERO 2010
A3: (CIFRAS ABSOLUTAS Y RELATIVAS)
A5: PARTIDO | B5: REGIDORES(AS) | G5: EN PROPIEDAD | L5: EN SUPLENCIA
B6: TOTAL | C6: HOMBRES | E6: MUJERES | G6: TOTAL | H6: HOMBRES | J6: MUJERES | L6: TOTAL | M6: HOMBRES | O6: MUJERES
C7: ABS | D7: % | E7: ABS | F7: % | H7: ABS | I7: % | J7: ABS | K7: % | M7: ABS | N7: % | O7: ABS | P7: %
A9: TOTAL | B9: =SUM(B11:B60) -> 7234 | C9: =SUM(C11:C60) -> 3504 | D9: =C9/B9*100 -> 48.43793199 | E9: =SUM(E11:E60) -> 3730 | F9: =E9/B9*100 -> 51.56206801 | G9: =SUM(G11:G60) -> 3663 | H9: =SUM(H11:H60) -> 1843 | I9: =H9/$G9*100 -> 50.31395031 | J9: =SUM(J11:J60) -> 1820 | K9: =J9/G9*100 -> 49.68604969 | L9: =SUM(L11:L60) -> 3571 | M9: =SUM(M11:M60) -> 1661 | N9: =M9/L9*100 -> 46.51358163 | O9: =SUM(O11:O60) -> 1910 | P9: =O9/$L9*100 -> 53.48641837
A11: UNIDAD SOCIAL CRISTIANA | B11: =G11+L11 -> 978 | C11: =H11+M11 -> 508 | D11: =C11/$B11*100 -> 51.94274029 | E11: =J11+O11 -> 470 | F11: =E11/B11*100 -> 48.05725971 | G11: =+H11+J11 -> 489 | H11: 259 | I11: =H11/$G11*100 -> 52.96523517 | J11: 230 | K11: =J11/$G11*100 -> 47.03476483 | L11: =+M11+O11 -> 489 | M11: 249 | N11: =M11/$L11*100 -> 50.9202454 | O11: 240 | P11: =O11/$L11*100 -> 49.0797546
A12: COMUNAL PRO-CURRI | B12: =G12+L12 -> 13 | C12: =H12+M12 -> 7 | D12: 53.84615385 | E12: =J12+O12 -> 6 | F12: =E12/B12*100 -> 46.15384615 | G12: =+H12+J12 -> 6 | H12: 3 | I12: 50 | J12: 3 | K12: 50 | L12: =+M12+O12 -> 7 | M12: 4 | N12: 57.14285714 | O12: 3 | P12: 42.85714286
A13: CURRIDABAT SIGLO XXI | B13: 14 | C13: 8 | D13: 57.14285714 | E13: 6 | F13: 42.85714286 | G13: 7 | H13: 4 | I13: 57.14285714 | J13: 3 | K13: 42.85714286 | L13: 7 | M13: 4 | N13: 57.14285714 | O13: 3 | P13: 42.85714286
A14: TARRAZÚ PRIMERO | B14: 8 | C14: 3 | D14: 37.5 | E14: 5 | F14: 62.5 | G14: 4 | H14: 2 | I14: 50 | J14: 2 | K14: 50 | L14: 4 | M14: 1 | N14: 25 | O14: 3 | P14: 75
A15: INTEGRACIÓN NACIONAL | B15: 115 | C15: 57 | D15: 49.56521739 | E15: 58 | F15: 50.43478261 | G15: 57 | H15: 30 | I15: 52.63157895 | J15: 27 | K15: 47.36842105 | L15: 58 | M15: 27 | N15: 46.55172414 | O15: 31 | P15: 53.44827586
A16: CÍVICO DE TIBÁS FUENTEOVEJUNA | B16: 14 | C16: 6 | D16: 42.85714286 | E16: 8 | F16: 57.14285714 | G16: 7 | H16: 2 | I16: 28.57142857 | J16: 5 | K16: 71.42857143 | L16: 7 | M16: 4 | N16: 57.14285714 | O16: 3 | P16: 42.85714286
A17: GOICOECHEA EN ACCIÓN | B17: 17 | C17: 9 | D17: 52.94117647 | E17: 8 | F17: 47.05882353 | G17: 8 | H17: 5 | I17: 62.5 | J17: 3 | K17: 37.5 | L17: 9 | M17: 4 | N17: 44.44444444 | O17: 5 | P17: 55.55555556
A18: VERDE ECOLOGISTA | B18: 90 | C18: 40 | D18: 44.44444444 | E18: 50 | F18: 55.55555556 | G18: 45 | H18: 18 | I18: 40 | J18: 27 | K18: 60 | L18: 45 | M18: 22 | N18: 48.88888889 | O18: 23 | P18: 51.11111111
A19: TALAMANCA UNIDA | B19: 9 | C19: 6 | D19: 66.66666667 | E19: 3 | F19: 33.33333333 | G19: 5 | H19: 3 | I19: 60 | J19: 2 | K19: 40 | L19: 4 | M19: 3 | N19: 75 | O19: 1 | P19: 25
A20: ALIANZA PATRIÓTICA | B20: 689 | C20: 331 | D20: 48.04063861 | E20: 358 | F20: 51.95936139 | G20: 367 | H20: 182 | I20: 49.59128065 | J20: 185 | K20: 50.40871935 | L20: 322 | M20: 149 | N20: 46.27329193 | O20: 173 | P20: 53.72670807
A21: RENOVEMOS ALAJUELA | B21: 22 | C21: 14 | D21: 63.63636364 | E21: 8 | F21: 36.36363636 | G21: 11 | H21: 7 | I21: 63.63636364 | J21: 4 | K21: 36.36363636 | L21: 11 | M21: 7 | N21: 63.63636364 | O21: 4 | P21: 36.36363636
A22: EL PUENTE Y LOS CAMINOS DE MORA | B22: 10 | C22: 6 | D22: 60 | E22: 4 | F22: 40 | G22: 5 | H22: 3 | I22: 60 | J22: 2 | K22: 40 | L22: 5 | M22: 3 | N22: 60 | O22: 2 | P22: 40
A23: UNIÓN PALMAREÑA | B23: 10 | C23: 4 | D23: 40 | E23: 6 | F23: 60 | G23: 5 | H23: 2 | I23: 40 | J23: 3 | K23: 60 | L23: 5 | M23: 2 | N23: 40 | O23: 3 | P23: 60
A24: RENOVACIÓN COSTARRICENSE | B24: 592 | C24: 265 | D24: 44.76351351 | E24: 327 | F24: 55.23648649 | G24: 294 | H24: 141 | I24: 47.95918367 | J24: 153 | K24: 52.04081633 | L24: 298 | M24: 124 | N24: 41.61073826 | O24: 174 | P24: 58.38926174
A25: MONTES DE OCA UNIDA (COALICIÓN) | B25: 14 | C25: 5 | D25: 35.71428571 | E25: 9 | F25: 64.28571429 | G25: 7 | H25: 2 | I25: 28.57142857 | J25: 5 | K25: 71.42857143 | L25: 7 | M25: 3 | N25: 42.85714286 | O25: 4 | P25: 57.14285714
A26: FRENTE AMPLIO | B26: 569 | C26: 284 | D26: 49.91212654 | E26: 285 | F26: 50.08787346 | G26: 283 | H26: 143 | I26: 50.53003534 | J26: 140 | K26: 49.46996466 | L26: 286 | M26: 141 | N26: 49.3006993 | O26: 145 | P26: 50.6993007
A27: ORGANIZACIÓN LABORISTA DE AGUIRRE | B27: 8 | C27: 3 | D27: 37.5 | E27: 5 | F27: 62.5 | G27: 5 | H27: 3 | I27: 60 | J27: 2 | K27: 40 | L27: 3 | M27: 0 | N27: 0 | O27: 3 | P27: 100
A28: ALIANZA SANCARLEÑA (COALICIÓN) | B28: 18 | C28: 8 | D28: 44.44444444 | E28: 10 | F28: 55.55555556 | G28: 9 | H28: 4 | I28: 44.44444444 | J28: 5 | K28: 55.55555556 | L28: 9 | M28: 4 | N28: 44.44444444 | O28: 5 | P28: 55.55555556
A29: VIVA BUENOS AIRES | B29: 10 | C29: 6 | D29: 60 | E29: 4 | F29: 40 | G29: 5 | H29: 3 | I29: 60 | J29: 2 | K29: 40 | L29: 5 | M29: 3 | N29: 60 | O29: 2 | P29: 40
A30: ACCIÓN NARANJEÑA | B30: 9 | C30: 3 | D30: 33.33333333 | E30: 6 | F30: 66.66666667 | G30: 4 | H30: 1 | I30: 25 | J30: 3 | K30: 75 | L30: 5 | M30: 2 | N30: 40 | O30: 3 | P30: 60
A31: LIBERACIÓN NACIONAL | B31: 988 | C31: 499 | D31: 50.50607287 | E31: 489 | F31: 49.49392713 | G31: 494 | H31: 260 | I31: 52.63157895 | J31: 234 | K31: 47.36842105 | L31: 494 | M31: 239 | N31: 48.3805668 | O31: 255 | P31: 51.6194332
A32: GARABITO ECOLÓGICO | B32: 10 | C32: 5 | D32: 50 | E32: 5 | F32: 50 | G32: 5 | H32: 3 | I32: 60 | J32: 2 | K32: 40 | L32: 5 | M32: 2 | N32: 40 | O32: 3 | P32: 60
A33: UNIÓN AGRÍCOLA CARTAGINÉS | B33: 20 | C33: 10 | D33: 50 | E33: 10 | F33: 50 | G33: 7 | H33: 4 | I33: 57.14285714 | J33: 3 | K33: 42.85714286 | L33: 13 | M33: 6 | N33: 46.15384615 | O33: 7 | P33: 53.84615385
A34: BARVA UNIDA (COALICIÓN) | B34: 10 | C34: 5 | D34: 50 | E34: 5 | F34: 50 | G34: 5 | H34: 2 | I34: 40 | J34: 3 | K34: 60 | L34: 5 | M34: 3 | N34: 60 | O34: 2 | P34: 40
A35: POPULAR DE ALFARO RUIZ (COALICIÓN) | B35: 9 | C35: 4 | D35: 44.44444444 | E35: 5 | F35: 55.55555556 | G35: 5 | H35: 3 | I35: 60 | J35: 2 | K35: 40 | L35: 4 | M35: 1 | N35: 25 | O35: 3 | P35: 75
A36: RESTAURACIÓN ALAJUELENSE | B36: 33 | C36: 17 | D36: 51.51515152 | E36: 16 | F36: 48.48484848 | G36: 18 | H36: 10 | I36: 55.55555556 | J36: 8 | K36: 44.44444444 | L36: 15 | M36: 7 | N36: 46.66666667 | O36: 8 | P36: 53.33333333
A37: MOVIMIENTO LIBERTARIO | B37: 957 | C37: 442 | D37: 46.18599791 | E37: 515 | F37: 53.81400209 | G37: 485 | H37: 236 | I37: 48.65979381 | J37: 249 | K37: 51.34020619 | L37: 472 | M37: 206 | N37: 43.6440678 | O37: 266 | P37: 56.3559322
A38: RESTAURACIÓN NACIONAL | B38: 165 | C38: 68 | D38: 41.21212121 | E38: 97 | F38: 58.78787879 | G38: 84 | H38: 39 | I38: 46.42857143 | J38: 45 | K38: 53.57142857 | L38: 81 | M38: 29 | N38: 35.80246914 | O38: 52 | P38: 64.19753086
A39: AUTÓNOMO OROMONTANO | B39: 10 | C39: 5 | D39: 50 | E39: 5 | F39: 50 | G39: 5 | H39: 3 | I39: 60 | J39: 2 | K39: 40 | L39: 5 | M39: 2 | N39: 40 | O39: 3 | P39: 60
A40: AUTÉNTICO LABRADOR DE CORONADO | B40: 13 | C40: 6 | D40: 46.15384615 | E40: 7 | F40: 53.84615385 | G40: 6 | H40: 3 | I40: 50 | J40: 3 | K40: 50 | L40: 7 | M40: 3 | N40: 42.85714286 | O40: 4 | P40: 57.14285714
A41: MOVIMIENTO AVANCE SANTO DOMINGO | B41: 9 | C41: 4 | D41: 44.44444444 | E41: 5 | F41: 55.55555556 | G41: 4 | H41: 1 | I41: 25 | J41: 3 | K41: 75 | L41: 5 | M41: 3 | N41: 60 | O41: 2 | P41: 40
A42: ACCIÓN CANTONAL SIQUIRRES INDEPENDIENTE | B42: 12 | C42: 6 | D42: 50 | E42: 6 | F42: 50 | G42: 5 | H42: 2 | I42: 40 | J42: 3 | K42: 60 | L42: 7 | M42: 4 | N42: 57.14285714 | O42: 3 | P42: 42.85714286
A43: ACCIÓN QUEPEÑA | B43: 9 | C43: 5 | D43: 55.55555556 | E43: 4 | F43: 44.44444444 | G43: 5 | H43: 3 | I43: 60 | J43: 2 | K43: 40 | L43: 4 | M43: 2 | N43: 50 | O43: 2 | P43: 50
A44: MOVIMIENTO DE TRABAJADORES Y CAMPESINOS | B44: 54 | C44: 23 | D44: 42.59259259 | E44: 31 | F44: 57.40740741 | G44: 26 | H44: 14 | I44: 53.84615385 | J44: 12 | K44: 46.15384615 | L44: 28 | M44: 9 | N44: 32.14285714 | O44: 19 | P44: 67.85714286
A45: ÚNICO ABANGAREÑO | B45: 10 | C45: 6 | D45: 60 | E45: 4 | F45: 40 | G45: 5 | H45: 3 | I45: 60 | J45: 2 | K45: 40 | L45: 5 | M45: 3 | N45: 60 | O45: 2 | P45: 40
A46: UNIÓN ATENIENSE | B46: 9 | C46: 6 | D46: 66.66666667 | E46: 3 | F46: 33.33333333 | G46: 4 | H46: 3 | I46: 75 | J46: 1 | K46: 25 | L46: 5 | M46: 3 | N46: 60 | O46: 2 | P46: 40
A47: ORGANIZACIÓN SOCIAL ACTIVA | B47: 10 | C47: 6 | D47: 60 | E47: 4 | F47: 40 | G47: 5 | H47: 3 | I47: 60 | J47: 2 | K47: 40 | L47: 5 | M47: 3 | N47: 60 | O47: 2 | P47: 40
A48: DEL SOL | B48: 10 | C48: 4 | D48: 40 | E48: 6 | F48: 60 | G48: 5 | H48: 2 | I48: 40 | J48: 3 | K48: 60 | L48: 5 | M48: 2 | N48: 40 | O48: 3 | P48: 60
A49: BARBAREÑA (COALICIÓN) | B49: =G49+L49 -> 9 | C49: =H49+M49 -> 5 | D49: 55.55555556 | E49: =J49+O49 -> 4 | F49: =E49/B49*100 -> 44.44444444 | G49: =+H49+J49 -> 4 | H49: 2 | I49: 50 | J49: 2 | K49: 50 | L49: =+M49+O49 -> 5 | M49: 3 | N49: 60 | O49: 2 | P49: 40
A50: HEREDIA UNIDA (COALICIÓN) | B50: 14 | C50: 7 | D50: 50 | E50: 7 | F50: 50 | G50: 7 | H50: 4 | I50: 57.14285714 | J50: 3 | K50: 42.85714286 | L50: 7 | M50: 3 | N50: 42.85714286 | O50: 4 | P50: 57.14285714
A51: ALIANZA MAYOR | B51: 31 | C51: 16 | D51: 51.61290323 | E51: 15 | F51: 48.38709677 | G51: 29 | H51: 15 | I51: 51.72413793 | J51: 14 | K51: 48.27586207 | L51: 2 | M51: 1 | N51: 50 | O51: 1 | P51: 50
A52: INDEPENDIENTE BELEMITA | B52: 10 | C52: 4 | D52: 40 | E52: 6 | F52: 60 | G52: 5 | H52: 3 | I52: 60 | J52: 2 | K52: 40 | L52: 5 | M52: 1 | N52: 20 | O52: 4 | P52: 80
A53: ALAJUELENSE (COALICIÓN) | B53: 22 | C53: 11 | D53: 50 | E53: 11 | F53: 50 | G53: 11 | H53: 5 | I53: 45.45454545 | J53: 6 | K53: 54.54545455 | L53: 11 | M53: 6 | N53: 54.54545455 | O53: 5 | P53: 45.45454545
A54: ACCIÓN CIUDADANA | B54: 910 | C54: 463 | D54: 50.87912088 | E54: 447 | F54: 49.12087912 | G54: 458 | H54: 243 | I54: 53.05676856 | J54: 215 | K54: 46.94323144 | L54: 452 | M54: 220 | N54: 48.67256637 | O54: 232 | P54: 51.32743363
A55: LIGA RAMONENSE (COALICIÓN) | B55: 14 | C55: 8 | D55: 57.14285714 | E55: 6 | F55: 42.85714286 | G55: 7 | H55: 4 | I55: 57.14285714 | J55: 3 | K55: 42.85714286 | L55: 7 | M55: 4 | N55: 57.14285714 | O55: 3 | P55: 42.85714286
A56: INTEGRACIÓN BARBAREÑA | B56: 10 | C56: 5 | D56: 50 | E56: 5 | F56: 50 | G56: 5 | H56: 2 | I56: 40 | J56: 3 | K56: 60 | L56: 5 | M56: 3 | N56: 60 | O56: 2 | P56: 40
A57: RESTAURACIÓN HEREDIANA | B57: 82 | C57: 30 | D57: 36.58536585 | E57: 52 | F57: 63.41463415 | G57: 44 | H57: 16 | I57: 36.36363636 | J57: 28 | K57: 63.63636364 | L57: 38 | M57: 14 | N57: 36.84210526 | O57: 24 | P57: 63.15789474
A58: ACCESIBILIDAD SIN EXCLUSIÓN | B58: 561 | C58: 248 | D58: 44.20677362 | E58: 313 | F58: 55.79322638 | G58: 285 | H58: 132 | I58: 46.31578947 | J58: 153 | K58: 53.68421053 | L58: 276 | M58: 116 | N58: 42.02898551 | O58: 160 | P58: 57.97101449
A59: YUNTA PROGRESISTA ESCAZUCEÑA | B59: 14 | C59: 7 | D59: 50 | E59: 7 | F59: 50 | G59: 7 | H59: 3 | I59: 42.85714286 | J59: 4 | K59: 57.14285714 | L59: 7 | M59: 4 | N59: 57.14285714 | O59: 3 | P59: 42.85714286
A60: FRENTE PATRIÓTICO POASEÑO (COALICIÓN) | B60: 10 | C60: 6 | D60: 60 | E60: 4 | F60: 40 | G60: 5 | H60: 3 | I60: 60 | J60: 2 | K60: 40 | L60: 5 | M60: 3 | N60: 60 | O60: 2 | P60: 40

Sheet 5.11
A1: CUADRO 5.11 COSTA RICA: CANDIDATOS(AS) A REGIDORES(AS), POR RESULTADO Y SEXO
A2: SEGÚN PROVINCIA, ELECCIONES 7 DE FEBRERO 2010
A3: (CIFRAS ABSOLUTAS Y RELATIVAS)
A5: PROVINCIA | B5: REGIDORES(AS) | G5: ELECTOS(AS) | L5: NO ELECTOS(AS)
B6: TOTAL | C6: HOMBRES | E6: MUJERES | G6: TOTAL | H6: HOMBRES | J6: MUJERES | L6: TOTAL | M6: HOMBRES | O6: MUJERES
C7: ABS | D7: % | E7: ABS | F7: % | H7: ABS | I7: % | J7: ABS | K7: % | M7: ABS | N7: % | O7: ABS | P7: %
A9: TOTAL | B9: =SUM(B11:B17) -> 7234 | C9: =SUM(C11:C17) -> 3504 | D9: =C9/B9*100 -> 48.43793199 | E9: =SUM(E11:E17) -> 3730 | F9: =E9/$B9*100 -> 51.56206801 | G9: =SUM(G11:G17) -> 990 | H9: =SUM(H11:H17) -> 566 | I9: =H9/G9*100 -> 57.17171717 | J9: =SUM(J11:J17) -> 424 | K9: =J9/G9*100 -> 42.82828283 | L9: =SUM(L11:L17) -> 6244 | M9: =SUM(M11:M17) -> 2938 | N9: =M9/L9*100 -> 47.05317104 | O9: =SUM(O11:O17) -> 3306 | P9: =O9/L9*100 -> 52.94682896
A11: SAN JOSÉ | B11: =+C11+E11 -> 2175 | C11: =+H11+M11 -> 1013 | D11: =C11/$B11*100 -> 46.57471264 | E11: =+J11+O11 -> 1162 | F11: =E11/$B11*100 -> 53.42528736 | G11: =+H11+J11 -> 276 | H11: 149 | I11: =H11/$G11*100 -> 53.98550725 | J11: 127 | K11: =J11/$G11*100 -> 46.01449275 | L11: =+M11+O11 -> 1899 | M11: 864 | N11: =M11/$L11*100 -> 45.49763033 | O11: 1035 | P11: =O11/$L11*100 -> 54.50236967
A12: ALAJUELA | B12: =+C12+E12 -> 1177 | C12: =+H12+M12 -> 610 | D12: 51.82667799 | E12: 567 | F12: 48.17332201 | G12: 178 | H12: 105 | I12: 58.98876404 | J12: 73 | K12: 41.01123596 | L12: 999 | M12: 505 | N12: 50.55055055 | O12: 494 | P12: 49.44944945
A13: CARTAGO | B13: 779 | C13: 372 | D13: 47.75353017 | E13: 407 | F13: 52.24646983 | G13: 104 | H13: 64 | I13: 61.53846154 | J13: 40 | K13: 38.46153846 | L13: 675 | M13: 308 | N13: 45.62962963 | O13: 367 | P13: 54.37037037
A14: HEREDIA | B14: 818 | C14: 379 | D14: 46.33251834 | E14: 439 | F14: 53.66748166 | G14: 112 | H14: 61 | I14: 54.46428571 | J14: 51 | K14: 45.53571429 | L14: 706 | M14: 318 | N14: 45.04249292 | O14: 388 | P14: 54.95750708
A15: GUANACASTE | B15: 739 | C15: 371 | D15: 50.202977 | E15: 368 | F15: 49.797023 | G15: 114 | H15: 68 | I15: 59.64912281 | J15: 46 | K15: 40.35087719 | L15: 625 | M15: 303 | N15: 48.48 | O15: 322 | P15: 51.52
A16: PUNTARENAS | B16: 802 | C16: 405 | D16: 50.49875312 | E16: 397 | F16: 49.50124688 | G16: 118 | H16: 71 | I16: 60.16949153 | J16: 47 | K16: 39.83050847 | L16: 684 | M16: 334 | N16: 48.83040936 | O16: 350 | P16: 51.16959064
A17: LIMÓN | B17: 744 | C17: 354 | D17: 47.58064516 | E17: 390 | F17: 52.41935484 | G17: 88 | H17: 48 | I17: 54.54545455 | J17: 40 | K17: 45.45454545 | L17: 656 | M17: 306 | N17: 46.64634146 | O17: 350 | P17: 53.35365854

Sheet 5.12
A1: CUADRO 5.12 COSTA RICA: CANDIDATOS(AS) A REGIDORES(AS), POR RESULTADO Y SEXO
A2: SEGÚN PARTIDO, ELECCIONES 7 DE FEBRERO 2010
A3: (CIFRAS ABSOLUTAS Y RELATIVAS)
A5: PARTIDO | B5: REGIDORES(AS) | G5: ELECTOS(AS) | L5: NO ELECTOS(AS)
B6: TOTAL | C6: HOMBRES | E6: MUJERES | G6: TOTAL | H6: HOMBRES | J6: MUJERES | L6: TOTAL | M6: HOMBRES | O6: MUJERES
C7: ABS | D7: % | E7: ABS | F7: % | H7: ABS | I7: % | J7: ABS | K7: % | M7: ABS | N7: % | O7: ABS | P7: %
A9: TOTAL | B9: =SUM(B11:B60) -> 7234 | C9: =SUM(C11:C60) -> 3504 | D9: =C9/$B9*100 -> 48.43793199 | E9: =SUM(E11:E60) -> 3730 | F9: =E9/$B9*100 -> 51.56206801 | G9: =SUM(G11:G60) -> 990 | H9: =SUM(H11:H60) -> 566 | I9: =H9/$G9*100 -> 57.17171717 | J9: =SUM(J11:J60) -> 424 | K9: =J9/$G9*100 -> 42.82828283 | L9: =SUM(L11:L60) -> 6244 | M9: =SUM(M11:M60) -> 2938 | N9: =M9/$L9*100 -> 47.05317104 | O9: =SUM(O11:O60) -> 3306 | P9: =O9/$L9*100 -> 52.94682896
A11: UNIDAD SOCIAL CRISTIANA | B11: =+C11+E11 -> 978 | C11: =+H11+M11 -> 508 | D11: =C11/$B11*100 -> 51.94274029 | E11: =+J11+O11 -> 470 | F11: =E11/$B11*100 -> 48.05725971 | G11: =+H11+J11 -> 106 | H11: 79 | I11: =H11/$G11*100 -> 74.52830189 | J11: 27 | K11: =J11/$G11*100 -> 25.47169811 | L11: =+M11+O11 -> 872 | M11: 429 | N11: =M11/$L11*100 -> 49.19724771 | O11: 443 | P11: =O11/$L11*100 -> 50.80275229
A12: COMUNAL PRO-CURRI | B12: =+C12+E12 -> 13 | C12: =+H12+M12 -> 7 | D12: =C12/$B12*100 -> 53.84615385 | E12: =+J12+O12 -> 6 | F12: =E12/$B12*100 -> 46.15384615 | G12: =+H12+J12 -> 0 | H12: 0 | I12: 0 | J12: 0 | K12: 0 | L12: =+M12+O12 -> 13 | M12: 7 | N12: =M12/$L12*100 -> 53.84615385 | O12: 6 | P12: =O12/$L12*100 -> 46.15384615
A13: CURRIDABAT SIGLO XXI | B13: 14 | C13: 8 | D13: 57.14285714 | E13: 6 | F13: 42.85714286 | G13: 8 | H13: 4 | I13: 50 | J13: 4 | K13: 50 | L13: 6 | M13: 4 | N13: 66.66666667 | O13: 2 | P13: 33.33333333
A14: TARRAZÚ PRIMERO | B14: 8 | C14: 3 | D14: 37.5 | E14: 5 | F14: 62.5 | G14: 2 | H14: 2 | I14: =H14/$G14*100 -> 100 | J14: 0 | K14: =J14/$G14*100 -> 0 | L14: 6 | M14: 1 | N14: 16.66666667 | O14: 5 | P14: 83.33333333
A15: INTEGRACIÓN NACIONAL | B15: 115 | C15: 57 | D15: 49.56521739 | E15: 58 | F15: 50.43478261 | G15: 2 | H15: 1 | I15: 50 | J15: 1 | K15: 50 | L15: 113 | M15: 56 | N15: 49.55752212 | O15: 57 | P15: 50.44247788
A16: CÍVICO DE TIBÁS FUENTEOVEJUNA | B16: 14 | C16: 6 | D16: 42.85714286 | E16: 8 | F16: 57.14285714 | G16: 2 | H16: 1 | I16: 50 | J16: 1 | K16: 50 | L16: 12 | M16: 5 | N16: 41.66666667 | O16: 7 | P16: 58.33333333
A17: GOICOECHEA EN ACCIÓN | B17: 17 | C17: 9 | D17: 52.94117647 | E17: 8 | F17: 47.05882353 | G17: 2 | H17: 1 | I17: 50 | J17: 1 | K17: 50 | L17: 15 | M17: 8 | N17: 53.33333333 | O17: 7 | P17: 46.66666667
A18: VERDE ECOLOGISTA | B18: 90 | C18: 40 | D18: 44.44444444 | E18: 50 | F18: 55.55555556 | G18: 0 | H18: 0 | I18: 0 | J18: 0 | K18: 0 | L18: 90 | M18: 40 | N18: 44.44444444 | O18: 50 | P18: 55.55555556
A19: TALAMANCA UNIDA | B19: 9 | C19: 6 | D19: 66.66666667 | E19: 3 | F19: 33.33333333 | G19: 0 | H19: 0 | I19: 0 | J19: 0 | K19: 0 | L19: 9 | M19: 6 | N19: 66.66666667 | O19: 3 | P19: 33.33333333
A20: ALIANZA PATRIÓTICA | B20: 689 | C20: 331 | D20: 48.04063861 | E20: 358 | F20: 51.95936139 | G20: 6 | H20: 4 | I20: 66.66666667 | J20: 2 | K20: 33.33333333 | L20: 683 | M20: 327 | N20: 47.87701318 | O20: 356 | P20: 52.12298682
A21: RENOVEMOS ALAJUELA | B21: 22 | C21: 14 | D21: 63.63636364 | E21: 8 | F21: 36.36363636 | G21: 2 | H21: 2 | I21: 100 | J21: 0 | K21: 0 | L21: 20 | M21: 12 | N21: 60 | O21: 8 | P21: 40
A22: EL PUENTE Y LOS CAMINOS DE MORA | B22: 10 | C22: 6 | D22: 60 | E22: 4 | F22: 40 | G22: 2 | H22: 1 | I22: 50 | J22: 1 | K22: 50 | L22: 8 | M22: 5 | N22: 62.5 | O22: 3 | P22: 37.5
A23: UNIÓN PALMAREÑA | B23: 10 | C23: 4 | D23: 40 | E23: 6 | F23: 60 | G23: 4 | H23: 1 | I23: 25 | J23: 3 | K23: 75 | L23: 6 | M23: 3 | N23: 50 | O23: 3 | P23: 50
A24: RENOVACIÓN COSTARRICENSE | B24: 592 | C24: 265 | D24: 44.76351351 | E24: 327 | F24: 55.23648649 | G24: 20 | H24: 18 | I24: 90 | J24: 2 | K24: 10 | L24: 572 | M24: 247 | N24: 43.18181818 | O24: 325 | P24: 56.81818182
A25: MONTES DE OCA UNIDA (COALICIÓN) | B25: 14 | C25: 5 | D25: 35.71428571 | E25: 9 | F25: 64.28571429 | G25: 0 | H25: 0 | I25: 0 | J25: 0 | K25: 0 | L25: 14 | M25: 5 | N25: 35.71428571 | O25: 9 | P25: 64.28571429
A26: FRENTE AMPLIO | B26: 569 | C26: 284 | D26: 49.91212654 | E26: 285 | F26: 50.08787346 | G26: 2 | H26: 1 | I26: 50 | J26: 1 | K26: 50 | L26: 567 | M26: 283 | N26: 49.91181658 | O26: 284 | P26: 50.08818342
A27: ORGANIZACIÓN LABORISTA DE AGUIRRE | B27: 8 | C27: 3 | D27: 37.5 | E27: 5 | F27: 62.5 | G27: 0 | H27: 0 | I27: 0 | J27: 0 | K27: 0 | L27: 8 | M27: 3 | N27: 37.5 | O27: 5 | P27: 62.5
A28: ALIANZA SANCARLEÑA (COALICIÓN) | B28: 18 | C28: 8 | D28: 44.44444444 | E28: 10 | F28: 55.55555556 | G28: 2 | H28: 1 | I28: 50 | J28: 1 | K28: 50 | L28: 16 | M28: 7 | N28: 43.75 | O28: 9 | P28: 56.25
A29: VIVA BUENOS AIRES | B29: 10 | C29: 6 | D29: 60 | E29: 4 | F29: 40 | G29: 2 | H29: 1 | I29: 50 | J29: 1 | K29: 50 | L29: 8 | M29: 5 | N29: 62.5 | O29: 3 | P29: 37.5
A30: ACCIÓN NARANJEÑA | B30: 9 | C30: 3 | D30: 33.33333333 | E30: 6 | F30: 66.66666667 | G30: 0 | H30: 0 | I30: 0 | J30: 0 | K30: 0 | L30: 9 | M30: 3 | N30: 33.33333333 | O30: 6 | P30: 66.66666667
A31: LIBERACIÓN NACIONAL | B31: 988 | C31: 499 | D31: 50.50607287 | E31: 489 | F31: 49.49392713 | G31: 392 | H31: 199 | I31: 50.76530612 | J31: 193 | K31: 49.23469388 | L31: 596 | M31: 300 | N31: 50.33557047 | O31: 296 | P31: 49.66442953
A32: GARABITO ECOLÓGICO | B32: =+C32+E32 -> 10 | C32: =+H32+M32 -> 5 | D32: 50 | E32: =+J32+O32 -> 5 | F32: 50 | G32: =+H32+J32 -> 2 | H32: 2 | I32: 100 | J32: 0 | K32: 0 | L32: =+M32+O32 -> 8 | M32: 3 | N32: 37.5 | O32: 5 | P32: 62.5
A33: UNIÓN AGRÍCOLA CARTAGINÉS | B33: 20 | C33: 10 | D33: 50 | E33: 10 | F33: 50 | G33: 2 | H33: 1 | I33: 50 | J33: 1 | K33: 50 | L33: 18 | M33: 9 | N33: 50 | O33: 9 | P33: 50
A34: BARVA UNIDA (COALICIÓN) | B34: 10 | C34: 5 | D34: 50 | E34: 5 | F34: 50 | G34: 2 | H34: 2 | I34: 100 | J34: 0 | K34: 0 | L34: 8 | M34: 3 | N34: 37.5 | O34: 5 | P34: 62.5
A35: POPULAR DE ALFARO RUIZ (COALICIÓN) | B35: 9 | C35: 4 | D35: 44.44444444 | E35: 5 | F35: 55.55555556 | G35: 2 | H35: 1 | I35: 50 | J35: 1 | K35: 50 | L35: 7 | M35: 3 | N35: 42.85714286 | O35: 4 | P35: 57.14285714
A36: RESTAURACIÓN ALAJUELENSE | B36: 33 | C36: 17 | D36: 51.51515152 | E36: 16 | F36: 48.48484848 | G36: 0 | H36: 0 | I36: 0 | J36: 0 | K36: 0 | L36: 33 | M36: 17 | N36: 51.51515152 | O36: 16 | P36: 48.48484848
A37: MOVIMIENTO LIBERTARIO | B37: 957 | C37: 442 | D37: 46.18599791 | E37: 515 | F37: 53.81400209 | G37: 150 | H37: 103 | I37: 68.66666667 | J37: 47 | K37: 31.33333333 | L37: 807 | M37: 339 | N37: 42.00743494 | O37: 468 | P37: 57.99256506
A38: RESTAURACIÓN NACIONAL | B38: 165 | C38: 68 | D38: 41.21212121 | E38: 97 | F38: 58.78787879 | G38: 2 | H38: 2 | I38: 100 | J38: 0 | K38: 0 | L38: 163 | M38: 66 | N38: 40.49079755 | O38: 97 | P38: 59.50920245
A39: AUTÓNOMO OROMONTANO | B39: 10 | C39: 5 | D39: 50 | E39: 5 | F39: 50 | G39: 2 | H39: 2 | I39: 100 | J39: 0 | K39: 0 | L39: 8 | M39: 3 | N39: 37.5 | O39: 5 | P39: 62.5
A40: AUTÉNTICO LABRADOR DE CORONADO | B40: 13 | C40: 6 | D40: 46.15384615 | E40: 7 | F40: 53.84615385 | G40: 2 | H40: 1 | I40: 50 | J40: 1 | K40: 50 | L40: 11 | M40: 5 | N40: 45.45454545 | O40: 6 | P40: 54.54545455
A41: MOVIMIENTO AVANCE SANTO DOMINGO | B41: 9 | C41: 4 | D41: 44.44444444 | E41: 5 | F41: 55.55555556 | G41: 2 | H41: 2 | I41: 100 | J41: 0 | K41: 0 | L41: 7 | M41: 2 | N41: 28.57142857 | O41: 5 | P41: 71.42857143
A42: ACCIÓN CANTONAL SIQUIRRES INDEPENDIENTE | B42: 12 | C42: 6 | D42: 50 | E42: 6 | F42: 50 | G42: 2 | H42: 1 | I42: 50 | J42: 1 | K42: 50 | L42: 10 | M42: 5 | N42: 50 | O42: 5 | P42: 50
A43: ACCIÓN QUEPEÑA | B43: 9 | C43: 5 | D43: 55.55555556 | E43: 4 | F43: 44.44444444 | G43: 2 | H43: 1 | I43: 50 | J43: 1 | K43: 50 | L43: 7 | M43: 4 | N43: 57.14285714 | O43: 3 | P43: 42.85714286
A44: MOVIMIENTO DE TRABAJADORES Y CAMPESINOS | B44: 54 | C44: 23 | D44: 42.59259259 | E44: 31 | F44: 57.40740741 | G44: 0 | H44: 0 | I44: 0 | J44: 0 | K44: 0 | L44: 54 | M44: 23 | N44: 42.59259259 | O44: 31 | P44: 57.40740741
A45: ÚNICO ABANGAREÑO | B45: 10 | C45: 6 | D45: 60 | E45: 4 | F45: 40 | G45: 4 | H45: 2 | I45: 50 | J45: 2 | K45: 50 | L45: 6 | M45: 4 | N45: 66.66666667 | O45: 2 | P45: 33.33333333
A46: UNIÓN ATENIENSE | B46: 9 | C46: 6 | D46: 66.66666667 | E46: 3 | F46: 33.33333333 | G46: 2 | H46: 2 | I46: 100 | J46: 0 | K46: 0 | L46: 7 | M46: 4 | N46: 57.14285714 | O46: 3 | P46: 42.85714286
A47: ORGANIZACIÓN SOCIAL ACTIVA | B47: 10 | C47: 6 | D47: 60 | E47: 4 | F47: 40 | G47: 2 | H47: 2 | I47: 100 | J47: 0 | K47: 0 | L47: 8 | M47: 4 | N47: 50 | O47: 4 | P47: 50
A48: DEL SOL | B48: 10 | C48: 4 | D48: 40 | E48: 6 | F48: 60 | G48: 4 | H48: 1 | I48: 25 | J48: 3 | K48: 75 | L48: 6 | M48: 3 | N48: 50 | O48: 3 | P48: 50
A49: BARBAREÑA (COALICIÓN) | B49: 9 | C49: 5 | D49: 55.55555556 | E49: 4 | F49: 44.44444444 | G49: 0 | H49: 0 | I49: 0 | J49: 0 | K49: 0 | L49: 9 | M49: 5 | N49: 55.55555556 | O49: 4 | P49: 44.44444444
A50: HEREDIA UNIDA (COALICIÓN) | B50: 14 | C50: 7 | D50: 50 | E50: 7 | F50: 50 | G50: 0 | H50: 0 | I50: 0 | J50: 0 | K50: 0 | L50: 14 | M50: 7 | N50: 50 | O50: 7 | P50: 50
A51: ALIANZA MAYOR | B51: =+C51+E51 -> 31 | C51: =+H51+M51 -> 16 | D51: 51.61290323 | E51: =+J51+O51 -> 15 | F51: 48.38709677 | G51: =+H51+J51 -> 0 | H51: 0 | I51: 0 | J51: 0 | K51: 0 | L51: =+M51+O51 -> 31 | M51: 16 | N51: 51.61290323 | O51: 15 | P51: 48.38709677
A52: INDEPENDIENTE BELEMITA | B52: 10 | C52: 4 | D52: 40 | E52: 6 | F52: 60 | G52: 2 | H52: 1 | I52: 50 | J52: 1 | K52: 50 | L52: 8 | M52: 3 | N52: 37.5 | O52: 5 | P52: 62.5
A53: ALAJUELENSE (COALICIÓN) | B53: 22 | C53: 11 | D53: 50 | E53: 11 | F53: 50 | G53: 0 | H53: 0 | I53: 0 | J53: 0 | K53: 0 | L53: 22 | M53: 11 | N53: 50 | O53: 11 | P53: 50
A54: ACCIÓN CIUDADANA | B54: 910 | C54: 463 | D54: 50.87912088 | E54: 447 | F54: 49.12087912 | G54: 198 | H54: 100 | I54: 50.50505051 | J54: 98 | K54: 49.49494949 | L54: 712 | M54: 363 | N54: 50.98314607 | O54: 349 | P54: 49.01685393
A55: LIGA RAMONENSE (COALICIÓN) | B55: =+C55+E55 -> 14 | C55: =+H55+M55 -> 8 | D55: 57.14285714 | E55: =+J55+O55 -> 6 | F55: 42.85714286 | G55: =+H55+J55 -> 2 | H55: 1 | I55: 50 | J55: 1 | K55: 50 | L55: =+M55+O55 -> 12 | M55: 7 | N55: 58.33333333 | O55: 5 | P55: 41.66666667
A56: INTEGRACIÓN BARBAREÑA | B56: =+C56+E56 -> 10 | C56: =+H56+M56 -> 5 | D56: 50 | E56: =+J56+O56 -> 5 | F56: 50 | G56: =+H56+J56 -> 2 | H56: 1 | I56: 50 | J56: 1 | K56: 50 | L56: =+M56+O56 -> 8 | M56: 4 | N56: 50 | O56: 4 | P56: 50
A57: RESTAURACIÓN HEREDIANA | B57: 82 | C57: 30 | D57: 36.58536585 | E57: 52 | F57: 63.41463415 | G57: 0 | H57: 0 | I57: 0 | J57: 0 | K57: 0 | L57: 82 | M57: 30 | N57: 36.58536585 | O57: 52 | P57: 63.41463415
A58: ACCESIBILIDAD SIN EXCLUSIÓN | B58: 561 | C58: 248 | D58: 44.20677362 | E58: 313 | F58: 55.79322638 | G58: 46 | H58: 21 | I58: 45.65217391 | J58: 25 | K58: 54.34782609 | L58: 515 | M58: 227 | N58: 44.0776699 | O58: 288 | P58: 55.9223301
A59: YUNTA PROGRESISTA ESCAZUCEÑA | B59: 14 | C59: 7 | D59: 50 | E59: 7 | F59: 50 | G59: 4 | H59: 1 | I59: 25 | J59: 3 | K59: 75 | L59: 10 | M59: 6 | N59: 60 | O59: 4 | P59: 40
A60: FRENTE PATRIÓTICO POASEÑO (COALICIÓN) | B60: 10 | C60: 6 | D60: 60 | E60: 4 | F60: 40 | G60: 0 | H60: 0 | I60: 0 | J60: 0 | K60: 0 | L60: 10 | M60: 6 | N60: 60 | O60: 4 | P60: 40

Sheet 5.13
A1: CUADRO 5.13 COSTA RICA: REGIDORES(AS) ELECTOS(AS) EN PROPIEDAD Y SUPLENCIA, POR SEXO
A2: SEGÚN PROVINCIA Y CANTÓN, ELECCIONES 7 DE FEBRERO 2010
A3: (CIFRAS ABSOLUTAS Y RELATIVAS)
A5: PROVINCIA Y CANTÓN | B5: REGIDORES(AS) | G5: EN PROPIEDAD | L5: EN SUPLENCIA
B6: TOTAL | C6: HOMBRES | E6: MUJERES | G6: TOTAL | H6: HOMBRES | J6: MUJERES | L6: TOTAL | M6: HOMBRES | O6: MUJERES
C7: ABS | D7: % | E7: ABS | F7: % | H7: ABS | I7: % | J7: ABS | K7: % | M7: ABS | N7: % | O7: ABS | P7: %
A9: COSTA RICA | B9: =C9+E9 -> 990 | C9: =H9+M9 -> 566 | D9: =C9/B9*100 -> 57.17171717 | E9: =J9+O9 -> 424 | F9: =E9/B9*100 -> 42.82828283 | G9: =H9+J9 -> 495 | H9: =H11+H33+H50+H60+H72+H85+H98 -> 304 | I9: =H9/G9*100 -> 61.41414141 | J9: =J11+J33+J50+J60+J72+J85+J98 -> 191 | K9: =J9/G9*100 -> 38.58585859 | L9: =M9+O9 -> 495 | M9: =M11+M33+M50+M60+M72+M85+M98 -> 262 | N9: =M9/L9*100 -> 52.92929293 | O9: =O11+O33+O50+O60+O72+O85+O98 -> 233 | P9: =O9/L9*100 -> 47.07070707
A11: SAN JOSÉ | B11: =G11+L11 -> 276 | C11: =H11+M11 -> 149 | D11: =C11/$B11*100 -> 53.98550725 | E11: =J11+O11 -> 127 | F11: =E11/B11*100 -> 46.01449275 | G11: =+H11+J11 -> 138 | H11: =SUM(H12:H31) -> 78 | I11: =H11/$G11*100 -> 56.52173913 | J11: =SUM(J12:J31) -> 60 | K11: =J11/$G11*100 -> 43.47826087 | L11: =+M11+O11 -> 138 | M11: =SUM(M12:M31) -> 71 | N11: =M11/$L11*100 -> 51.44927536 | O11: =SUM(O12:O31) -> 67 | P11: =O11/$L11*100 -> 48.55072464
A12: SAN JOSÉ | B12: =G12+L12 -> 22 | C12: =H12+M12 -> 10 | D12: 45.45454545 | E12: =J12+O12 -> 12 | F12: =E12/B12*100 -> 54.54545455 | G12: =+H12+J12 -> 11 | H12: 5 | I12: 45.45454545 | J12: 6 | K12: 54.54545455 | L12: =+M12+O12 -> 11 | M12: 5 | N12: 45.45454545 | O12: 6 | P12: 54.54545455
A13: ESCAZÚ | B13: 14 | C13: 6 | D13: 42.85714286 | E13: 8 | F13: 57.14285714 | G13: 7 | H13: 2 | I13: 28.57142857 | J13: 5 | K13: 71.42857143 | L13: 7 | M13: 4 | N13: 57.14285714 | O13: 3 | P13: 42.85714286
A14: DESAMPARADOS | B14: 22 | C14: 13 | D14: 59.09090909 | E14: 9 | F14: 40.90909091 | G14: 11 | H14: 6 | I14: 54.54545455 | J14: 5 | K14: 45.45454545 | L14: 11 | M14: 7 | N14: 63.63636364 | O14: 4 | P14: 36.36363636
A15: PURISCAL | B15: 10 | C15: 7 | D15: 70 | E15: 3 | F15: 30 | G15: 5 | H15: 4 | I15: 80 | J15: 1 | K15: 20 | L15: 5 | M15: 3 | N15: 60 | O15: 2 | P15: 40
A16: TARRAZÚ | B16: 10 | C16: 6 | D16: 60 | E16: 4 | F16: 40 | G16: 5 | H16: 4 | I16: 80 | J16: 1 | K16: 20 | L16: 5 | M16: 2 | N16: 40 | O16: 3 | P16: 60
A17: ASERRÍ | B17: 14 | C17: 8 | D17: 57.14285714 | E17: 6 | F17: 42.85714286 | G17: 7 | H17: 3 | I17: 42.85714286 | J17: 4 | K17: 57.14285714 | L17: 7 | M17: 5 | N17: 71.42857143 | O17: 2 | P17: 28.57142857
A18: MORA | B18: 10 | C18: 6 | D18: 60 | E18: 4 | F18: 40 | G18: 5 | H18: 4 | I18: 80 | J18: 1 | K18: 20 | L18: 5 | M18: 2 | N18: 40 | O18: 3 | P18: 60
A19: GOICOECHEA | B19: 18 | C19: 9 | D19: 50 | E19: 9 | F19: 50 | G19: 9 | H19: 6 | I19: 66.66666667 | J19: 3 | K19: 33.33333333 | L19: 9 | M19: 3 | N19: 33.33333333 | O19: 6 | P19: 66.66666667
A20: SANTA ANA | B20: 10 | C20: 4 | D20: 40 | E20: 6 | F20: 60 | G20: 5 | H20: 3 | I20: 60 | J20: 2 | K20: 40 | L20: 5 | M20: 1 | N20: 20 | O20: 4 | P20: 80
A21: ALAJUELITA | B21: 18 | C21: 9 | D21: 50 | E21: 9 | F21: 50 | G21: 9 | H21: 5 | I21: 55.55555556 | J21: 4 | K21: 44.44444444 | L21: 9 | M21: 4 | N21: 44.44444444 | O21: 5 | P21: 55.55555556
A22: VÁZQUEZ DE CORONADO | B22: 14 | C22: 8 | D22: 57.14285714 | E22: 6 | F22: 42.85714286 | G22: 7 | H22: 5 | I22: 71.42857143 | J22: 2 | K22: 28.57142857 | L22: 7 | M22: 3 | N22: 42.85714286 | O22: 4 | P22: 57.14285714
A23: ACOSTA | B23: 10 | C23: 6 | D23: 60 | E23: 4 | F23: 40 | G23: 5 | H23: 3 | I23: 60 | J23: 2 | K23: 40 | L23: 5 | M23: 3 | N23: 60 | O23: 2 | P23: 40
A24: TIBÁS | B24: 14 | C24: 5 | D24: 35.71428571 | E24: 9 | F24: 64.28571429 | G24: 7 | H24: 2 | I24: 28.57142857 | J24: 5 | K24: 71.42857143 | L24: 7 | M24: 3 | N24: 42.85714286 | O24: 4 | P24: 57.14285714
A25: MORAVIA | B25: 14 | C25: 7 | D25: 50 | E25: 7 | F25: 50 | G25: 7 | H25: 3 | I25: 42.85714286 | J25: 4 | K25: 57.14285714 | L25: 7 | M25: 4 | N25: 57.14285714 | O25: 3 | P25: 42.85714286
A26: MONTES DE OCA | B26: 14 | C26: 8 | D26: 57.14285714 | E26: 6 | F26: 42.85714286 | G26: 7 | H26: 4 | I26: 57.14285714 | J26: 3 | K26: 42.85714286 | L26: 7 | M26: 4 | N26: 57.14285714 | O26: 3 | P26: 42.85714286
A27: TURRUBARES | B27: 10 | C27: 6 | D27: 60 | E27: 4 | F27: 40 | G27: 5 | H27: 3 | I27: 60 | J27: 2 | K27: 40 | L27: 5 | M27: 3 | N27: 60 | O27: 2 | P27: 40
A28: DOTA | B28: 10 | C28: 4 | D28: 40 | E28: 6 | F28: 60 | G28: 5 | H28: 3 | I28: 60 | J28: 2 | K28: 40 | L28: 5 | M28: 1 | N28: 20 | O28: 4 | P28: 80
A29: CURRIDABAT | B29: 14 | C29: 7 | D29: 50 | E29: 7 | F29: 50 | G29: 7 | H29: 3 | I29: 42.85714286 | J29: 4 | K29: 57.14285714 | L29: 7 | M29: 4 | N29: 57.14285714 | O29: 3 | P29: 42.85714286
A30: PÉREZ ZELEDÓN | B30: 18 | C30: 12 | D30: 66.66666667 | E30: 6 | F30: 33.33333333 | G30: 9 | H30: 6 | I30: 66.66666667 | J30: 3 | K30: 33.33333333 | L30: 9 | M30: 6 | N30: 66.66666667 | O30: 3 | P30: 33.33333333
A31: LEÓN CORTÉS | B31: 10 | C31: 8 | D31: 80 | E31: 2 | F31: 20 | G31: 5 | H31: 4 | I31: 80 | J31: 1 | K31: 20 | L31: 5 | M31: 4 | N31: 80 | O31: 1 | P31: 20
A33: ALAJUELA | B33: 178 | C33: 105 | D33: 58.98876404 | E33: 73 | F33: 41.01123596 | G33: 89 | H33: =SUM(H34:H48) -> 58 | I33: 65.16853933 | J33: =SUM(J34:J48) -> 31 | K33: 34.83146067 | L33: 89 | M33: =SUM(M34:M48) -> 47 | N33: 52.80898876 | O33: =SUM(O34:O48) -> 42 | P33: 47.19101124
A34: ALAJUELA | B34: 22 | C34: 13 | D34: 59.09090909 | E34: 9 | F34: 40.90909091 | G34: 11 | H34: 6 | I34: 54.54545455 | J34: 5 | K34: 45.45454545 | L34: 11 | M34: 7 | N34: 63.63636364 | O34: 4 | P34: 36.36363636
A35: SAN RAMÓN | B35: 14 | C35: 10 | D35: 71.42857143 | E35: 4 | F35: 28.57142857 | G35: 7 | H35: 4 | I35: 57.14285714 | J35: 3 | K35: 42.85714286 | L35: 7 | M35: 6 | N35: 85.71428571 | O35: 1 | P35: 14.28571429
A36: GRECIA | B36: 14 | C36: 10 | D36: 71.42857143 | E36: 4 | F36: 28.57142857 | G36: 7 | H36: 6 | I36: 85.71428571 | J36: 1 | K36: 14.28571429 | L36: 7 | M36: 4 | N36: 57.14285714 | O36: 3 | P36: 42.85714286
A37: SAN MATEO | B37: 10 | C37: 7 | D37: 70 | E37: 3 | F37: 30 | G37: 5 | H37: 3 | I37: 60 | J37: 2 | K37: 40 | L37: 5 | M37: 4 | N37: 80 | O37: 1 | P37: 20
A38: ATENAS | B38: 10 | C38: 6 | D38: 60 | E38: 4 | F38: 40 | G38: 5 | H38: 3 | I38: 60 | J38: 2 | K38: 40 | L38: 5 | M38: 3 | N38: 60 | O38: 2 | P38: 40
A39: NARANJO | B39: 10 | C39: 6 | D39: 60 | E39: 4 | F39: 40 | G39: 5 | H39: 4 | I39: 80 | J39: 1 | K39: 20 | L39: 5 | M39: 2 | N39: 40 | O39: 3 | P39: 60
A40: PALMARES | B40: 10 | C40: 4 | D40: 40 | E40: 6 | F40: 60 | G40: 5 | H40: 2 | I40: 40 | J40: 3 | K40: 60 | L40: 5 | M40: 2 | N40: 40 | O40: 3 | P40: 60
A41: POÁS | B41: 10 | C41: 6 | D41: 60 | E41: 4 | F41: 40 | G41: 5 | H41: 4 | I41: 80 | J41: 1 | K41: 20 | L41: 5 | M41: 2 | N41: 40 | O41: 3 | P41: 60
A42: OROTINA | B42: 10 | C42: 5 | D42: 50 | E42: 5 | F42: 50 | G42: 5 | H42: 2 | I42: 40 | J42: 3 | K42: 60 | L42: 5 | M42: 3 | N42: 60 | O42: 2 | P42: 40
A43: SAN CARLOS | B43: 18 | C43: 12 | D43: 66.66666667 | E43: 6 | F43: 33.33333333 | G43: 9 | H43: 7 | I43: 77.77777778 | J43: 2 | K43: 22.22222222 | L43: 9 | M43: 5 | N43: 55.55555556 | O43: 4 | P43: 44.44444444
A44: ALFARO RUIZ | B44: 10 | C44: 5 | D44: 50 | E44: 5 | F44: 50 | G44: 5 | H44: 2 | I44: 40 | J44: 3 | K44: 60 | L44: 5 | M44: 3 | N44: 60 | O44: 2 | P44: 40
A45: VALVERDE VEGA | B45: 10 | C45: 5 | D45: 50 | E45: 5 | F45: 50 | G45: 5 | H45: 5 | I45: 100 | J45: 0 | K45: 0 | L45: 5 | M45: 0 | N45: 0 | O45: 5 | P45: 100
A46: UPALA | B46: 10 | C46: 6 | D46: 60 | E46: 4 | F46: 40 | G46: 5 | H46: 3 | I46: 60 | J46: 2 | K46: 40 | L46: 5 | M46: 3 | N46: 60 | O46: 2 | P46: 40
A47: LOS CHILES | B47: 10 | C47: 4 | D47: 40 | E47: 6 | F47: 60 | G47: 5 | H47: 3 | I47: 60 | J47: 2 | K47: 40 | L47: 5 | M47: 1 | N47: 20 | O47: 4 | P47: 80
A48: GUATUSO | B48: 10 | C48: 6 | D48: 60 | E48: 4 | F48: 40 | G48: 5 | H48: 4 | I48: 80 | J48: 1 | K48: 20 | L48: 5 | M48: 2 | N48: 40 | O48: 3 | P48: 60
A50: CARTAGO | B50: 104 | C50: 64 | D50: 61.53846154 | E50: 40 | F50: 38.46153846 | G50: 52 | H50: =SUM(H51:H58) -> 28 | I50: 53.84615385 | J50: =SUM(J51:J58) -> 24 | K50: 46.15384615 | L50: 52 | M50: =SUM(M51:M58) -> 36 | N50: 69.23076923 | O50: =SUM(O51:O58) -> 16 | P50: 30.76923077
A51: CARTAGO | B51: 18 | C51: 12 | D51: 66.66666667 | E51: 6 | F51: 33.33333333 | G51: 9 | H51: 6 | I51: 66.66666667 | J51: 3 | K51: 33.33333333 | L51: 9 | M51: 6 | N51: 66.66666667 | O51: 3 | P51: 33.33333333
A52: PARAÍSO | B52: =G52+L52 -> 14 | C52: 8 | D52: 57.14285714 | E52: =J52+O52 -> 6 | F52: =E52/B52*100 -> 42.85714286 | G52: =+H52+J52 -> 7 | H52: 3 | I52: 42.85714286 | J52: 4 | K52: 57.14285714 | L52: =+M52+O52 -> 7 | M52: 5 | N52: 71.42857143 | O52: 2 | P52: 28.57142857
A53: LA UNIÓN | B53: 18 | C53: 11 | D53: 61.11111111 | E53: 7 | F53: 38.88888889 | G53: 9 | H53: 4 | I53: 44.44444444 | J53: 5 | K53: 55.55555556 | L53: 9 | M53: 7 | N53: 77.77777778 | O53: 2 | P53: 22.22222222
A54: JIMÉNEZ | B54: 10 | C54: 8 | D54: 80 | E54: 2 | F54: 20 | G54: 5 | H54: 4 | I54: 80 | J54: 1 | K54: 20 | L54: 5 | M54: 4 | N54: 80 | O54: 1 | P54: 20
A55: TURRIALBA | B55: 14 | C55: 7 | D55: 50 | E55: 7 | F55: 50 | G55: 7 | H55: 3 | I55: 42.85714286 | J55: 4 | K55: 57.14285714 | L55: 7 | M55: 4 | N55: 57.14285714 | O55: 3 | P55: 42.85714286
A56: ALVARADO | B56: 10 | C56: 6 | D56: 60 | E56: 4 | F56: 40 | G56: 5 | H56: 3 | I56: 60 | J56: 2 | K56: 40 | L56: 5 | M56: 3 | N56: 60 | O56: 2 | P56: 40
A57: OREAMUNO | B57: 10 | C57: 6 | D57: 60 | E57: 4 | F57: 40 | G57: 5 | H57: 2 | I57: 40 | J57: 3 | K57: 60 | L57: 5 | M57: 4 | N57: 80 | O57: 1 | P57: 20
A58: EL GUARCO | B58: 10 | C58: 6 | D58: 60 | E58: 4 | F58: 40 | G58: 5 | H58: 3 | I58: 60 | J58: 2 | K58: 40 | L58: 5 | M58: 3 | N58: 60 | O58: 2 | P58: 40
A60: HEREDIA | B60: =G60+L60 -> 112 | C60: =H60+M60 -> 61 | D60: 54.46428571 | E60: =J60+O60 -> 51 | F60: =E60/B60*100 -> 45.53571429 | G60: =+H60+J60 -> 56 | H60: =SUM(H61:H70) -> 33 | I60: 58.92857143 | J60: =SUM(J61:J70) -> 23 | K60: 41.07142857 | L60: =+M60+O60 -> 56 | M60: =SUM(M61:M70) -> 28 | N60: 50 | O60: =SUM(O61:O70) -> 28 | P60: 50
A61: HEREDIA | B61: 18 | C61: 9 | D61: 50 | E61: 9 | F61: 50 | G61: 9 | H61: 5 | I61: 55.55555556 | J61: 4 | K61: 44.44444444 | L61: 9 | M61: 4 | N61: 44.44444444 | O61: 5 | P61: 55.55555556
A62: BARVA | B62: 10 | C62: 7 | D62: 70 | E62: 3 | F62: 30 | G62: 5 | H62: 3 | I62: 60 | J62: 2 | K62: 40 | L62: 5 | M62: 4 | N62: 80 | O62: 1 | P62: 20
A63: SANTO DOMINGO | B63: 10 | C63: 5 | D63: 50 | E63: 5 | F63: 50 | G63: 5 | H63: 4 | I63: 80 | J63: 1 | K63: 20 | L63: 5 | M63: 1 | N63: 20 | O63: 4 | P63: 80
A64: SANTA BÁRBARA | B64: 10 | C64: 5 | D64: 50 | E64: 5 | F64: 50 | G64: 5 | H64: 2 | I64: 40 | J64: 3 | K64: 60 | L64: 5 | M64: 3 | N64: 60 | O64: 2 | P64: 40
A65: SAN RAFAEL | B65: 10 | C65: 4 | D65: 40 | E65: 6 | F65: 60 | G65: 5 | H65: 3 | I65: 60 | J65: 2 | K65: 40 | L65: 5 | M65: 1 | N65: 20 | O65: 4 | P65: 80
A66: SAN ISIDRO | B66: 10 | C66: 5 | D66: 50 | E66: 5 | F66: 50 | G66: 5 | H66: 3 | I66: 60 | J66: 2 | K66: 40 | L66: 5 | M66: 2 | N66: 40 | O66: 3 | P66: 60
A67: BELÉN | B67: 10 | C67: 4 | D67: 40 | E67: 6 | F67: 60 | G67: 5 | H67: 2 | I67: 40 | J67: 3 | K67: 60 | L67: 5 | M67: 2 | N67: 40 | O67: 3 | P67: 60
A68: FLORES | B68: 10 | C68: 6 | D68: 60 | E68: 4 | F68: 40 | G68: 5 | H68: 3 | I68: 60 | J68: 2 | K68: 40 | L68: 5 | M68: 3 | N68: 60 | O68: 2 | P68: 40
A69: SAN PABLO | B69: 10 | C69: 7 | D69: 70 | E69: 3 | F69: 30 | G69: 5 | H69: 3 | I69: 60 | J69: 2 | K69: 40 | L69: 5 | M69: 4 | N69: 80 | O69: 1 | P69: 20
A70: SARAPIQUÍ | B70: 14 | C70: 9 | D70: 64.28571429 | E70: 5 | F70: 35.71428571 | G70: 7 | H70: 5 | I70: 71.42857143 | J70: 2 | K70: 28.57142857 | L70: 7 | M70: 4 | N70: 57.14285714 | O70: 3 | P70: 42.85714286
A72: GUANACASTE | B72: =G72+L72 -> 114 | C72: =H72+M72 -> 68 | D72: 59.64912281 | E72: =J72+O72 -> 46 | F72: =E72/B72*100 -> 40.35087719 | G72: =+H72+J72 -> 57 | H72: =SUM(H73:H83) -> 37 | I72: 64.9122807 | J72: =SUM(J73:J83) -> 20 | K72: 35.0877193 | L72: =+M72+O72 -> 57 | M72: =SUM(M73:M83) -> 31 | N72: 54.38596491 | O72: =SUM(O73:O83) -> 26 | P72: 45.61403509
A73: LIBERIA | B73: 14 | C73: 8 | D73: 57.14285714 | E73: 6 | F73: 42.85714286 | G73: 7 | H73: 5 | I73: 71.42857143 | J73: 2 | K73: 28.57142857 | L73: 7 | M73: 3 | N73: 42.85714286 | O73: 4 | P73: 57.14285714
A74: NICOYA | B74: 10 | C74: 7 | D74: 70 | E74: 3 | F74: 30 | G74: 5 | H74: 4 | I74: 80 | J74: 1 | K74: 20 | L74: 5 | M74: 3 | N74: 60 | O74: 2 | P74: 40
A75: SANTA CRUZ | B75: 10 | C75: 5 | D75: 50 | E75: 5 | F75: 50 | G75: 5 | H75: 3 | I75: 60 | J75: 2 | K75: 40 | L75: 5 | M75: 2 | N75: 40 | O75: 3 | P75: 60
A76: BAGACES | B76: 10 | C76: 6 | D76: 60 | E76: 4 | F76: 40 | G76: 5 | H76: 3 | I76: 60 | J76: 2 | K76: 40 | L76: 5 | M76: 3 | N76: 60 | O76: 2 | P76: 40
A77: CARRILLO | B77: 10 | C77: 4 | D77: 40 | E77: 6 | F77: 60 | G77: 5 | H77: 3 | I77: 60 | J77: 2 | K77: 40 | L77: 5 | M77: 1 | N77: 20 | O77: 4 | P77: 80
A78: CAÑAS | B78: 10 | C78: 5 | D78: 50 | E78: 5 | F78: 50 | G78: 5 | H78: 3 | I78: 60 | J78: 2 | K78: 40 | L78: 5 | M78: 2 | N78: 40 | O78: 3 | P78: 60
A79: ABANGARES | B79: 10 | C79: 6 | D79: 60 | E79: 4 | F79: 40 | G79: 5 | H79: 3 | I79: 60 | J79: 2 | K79: 40 | L79: 5 | M79: 3 | N79: 60 | O79: 2 | P79: 40
A80: TILARÁN” | B80: 10 | C80: 7 | D80: 70 | E80: 3 | F80: 30 | G80: 5 | H80: 3 | I80: 60 | J80: 2 | K80: 40 | L80: 5 | M80: 4 | N80: 80 | O80: 1 | P80: 20
A81: NANDAYURE | B81: 10 | C81: 7 | D81: 70 | E81: 3 | F81: 30 | G81: 5 | H81: 4 | I81: 80 | J81: 1 | K81: 20 | L81: 5 | M81: 3 | N81: 60 | O81: 2 | P81: 40
A82: LA CRUZ | B82: 10 | C82: 6 | D82: 60 | E82: 4 | F82: 40 | G82: 5 | H82: 2 | I82: 40 | J82: 3 | K82: 60 | L82: 5 | M82: 4 | N82: 80 | O82: 1 | P82: 20
A83: HOJANCHA | B83: 10 | C83: 7 | D83: 70 | E83: 3 | F83: 30 | G83: 5 | H83: 4 | I83: 80 | J83: 1 | K83: 20 | L83: 5 | M83: 3 | N83: 60 | O83: 2 | P83: 40
A85: PUNTARENAS | B85: =G85+L85 -> 118 | C85: =H85+M85 -> 71 | D85: 60.16949153 | E85: =J85+O85 -> 47 | F85: =E85/B85*100 -> 39.83050847 | G85: =+H85+J85 -> 59 | H85: =SUM(H86:H96) -> 40 | I85: 67.79661017 | J85: =SUM(J86:J96) -> 19 | K85: 32.20338983 | L85: =+M85+O85 -> 59 | M85: =SUM(M86:M96) -> 31 | N85: 52.54237288 | O85: =SUM(O86:O96) -> 28 | P85: 47.45762712
A86: PUNTARENAS | B86: =G86+L86 -> 18 | C86: =H86+M86 -> 11 | D86: 61.11111111 | E86: =J86+O86 -> 7 | F86: =E86/B86*100 -> 38.88888889 | G86: =+H86+J86 -> 9 | H86: 7 | I86: 77.77777778 | J86: 2 | K86: 22.22222222 | L86: =+M86+O86 -> 9 | M86: 4 | N86: 44.44444444 | O86: 5 | P86: 55.55555556
A87: ESPARZA | B87: 10 | C87: 6 | D87: 60 | E87: 4 | F87: 40 | G87: 5 | H87: 3 | I87: 60 | J87: 2 | K87: 40 | L87: 5 | M87: 3 | N87: 60 | O87: 2 | P87: 40
A88: BUENOS AIRES | B88: 10 | C88: 5 | D88: 50 | E88: 5 | F88: 50 | G88: 5 | H88: 3 | I88: 60 | J88: 2 | K88: 40 | L88: 5 | M88: 2 | N88: 40 | O88: 3 | P88: 60
A89: MONTES DE ORO | B89: 10 | C89: 8 | D89: 80 | E89: 2 | F89: 20 | G89: 5 | H89: 4 | I89: 80 | J89: 1 | K89: 20 | L89: 5 | M89: 4 | N89: 80 | O89: 1 | P89: 20
A90: OSA | B90: 10 | C90: 5 | D90: 50 | E90: 5 | F90: 50 | G90: 5 | H90: 2 | I90: 40 | J90: 3 | K90: 60 | L90: 5 | M90: 3 | N90: 60 | O90: 2 | P90: 40
A91: AGUIRRE | B91: 10 | C91: 5 | D91: 50 | E91: 5 | F91: 50 | G91: 5 | H91: 4 | I91: 80 | J91: 1 | K91: 20 | L91: 5 | M91: 1 | N91: 20 | O91: 4 | P91: 80
A92: GOLFITO | B92: 10 | C92: 6 | D92: 60 | E92: 4 | F92: 40 | G92: 5 | H92: 4 | I92: 80 | J92: 1 | K92: 20 | L92: 5 | M92: 2 | N92: 40 | O92: 3 | P92: 60
A93: COTO BRUS | B93: 10 | C93: 7 | D93: 70 | E93: 3 | F93: 30 | G93: 5 | H93: 3 | I93: 60 | J93: 2 | K93: 40 | L93: 5 | M93: 4 | N93: 80 | O93: 1 | P93: 20
A94: PARRITA | B94: 10 | C94: 6 | D94: 60 | E94: 4 | F94: 40 | G94: 5 | H94: 4 | I94: 80 | J94: 1 | K94: 20 | L94: 5 | M94: 2 | N94: 40 | O94: 3 | P94: 60
A95: CORREDORES | B95: 10 | C95: 5 | D95: 50 | E95: 5 | F95: 50 | G95: 5 | H95: 3 | I95: 60 | J95: 2 | K95: 40 | L95: 5 | M95: 2 | N95: 40 | O95: 3 | P95: 60
A96: GARABITO | B96: 10 | C96: 7 | D96: 70 | E96: 3 | F96: 30 | G96: 5 | H96: 3 | I96: 60 | J96: 2 | K96: 40 | L96: 5 | M96: 4 | N96: 80 | O96: 1 | P96: 20
A98: LIMÓN | B98: =G98+L98 -> 88 | C98: 48 | D98: 54.54545455 | E98: =J98+O98 -> 40 | F98: =E98/B98*100 -> 45.45454545 | G98: =+H98+J98 -> 44 | H98: =SUM(H99:H104) -> 30 | I98: 68.18181818 | J98: =SUM(J99:J104) -> 14 | K98: 31.81818182 | L98: =+M98+O98 -> 44 | M98: =SUM(M99:M104) -> 18 | N98: 40.90909091 | O98: =SUM(O99:O104) -> 26 | P98: 59.09090909
A99: LIMÓN | B99: 18 | C99: 10 | D99: 55.55555556 | E99: 8 | F99: 44.44444444 | G99: 9 | H99: 5 | I99: 55.55555556 | J99: 4 | K99: 44.44444444 | L99: 9 | M99: 5 | N99: 55.55555556 | O99: 4 | P99: 44.44444444
A100: POCOCÍ | B100: 18 | C100: 11 | D100: 61.11111111 | E100: 7 | F100: 38.88888889 | G100: 9 | H100: 7 | I100: 77.77777778 | J100: 2 | K100: 22.22222222 | L100: 9 | M100: 4 | N100: 44.44444444 | O100: 5 | P100: 55.55555556
A101: SIQUIRRES | B101: 14 | C101: 8 | D101: 57.14285714 | E101: 6 | F101: 42.85714286 | G101: 7 | H101: 5 | I101: 71.42857143 | J101: 2 | K101: 28.57142857 | L101: 7 | M101: 3 | N101: 42.85714286 | O101: 4 | P101: 57.14285714
A102: TALAMANCA | B102: 10 | C102: 6 | D102: 60 | E102: 4 | F102: 40 | G102: 5 | H102: 4 | I102: 80 | J102: 1 | K102: 20 | L102: 5 | M102: 2 | N102: 40 | O102: 3 | P102: 60
A103: MATINA | B103: 14 | C103: 5 | D103: 35.71428571 | E103: 9 | F103: 64.28571429 | G103: 7 | H103: 4 | I103: 57.14285714 | J103: 3 | K103: 42.85714286 | L103: 7 | M103: 1 | N103: 14.28571429 | O103: 6 | P103: 85.71428571
A104: GUÁCIMO | B104: 14 | C104: 8 | D104: 57.14285714 | E104: 6 | F104: 42.85714286 | G104: 7 | H104: 5 | I104: 71.42857143 | J104: 2 | K104: 28.57142857 | L104: 7 | M104: 3 | N104: 42.85714286 | O104: 4 | P104: 57.14285714

Sheet 5.14
A1: CUADRO 5.14 COSTA RICA: REGIDORES(AS) ELECTOS(AS) EN PROPIEDAD Y SUPLENCIA, POR SEXO
A2: SEGÚN PARTIDO, ELECCIONES 7 DE FEBRERO 2010
A3: (CIFRAS ABSOLUTAS Y RELATIVAS)
A5: PARTIDO | B5: REGIDORES(AS) | G5: EN PROPIEDAD | L5: EN SUPLENCIA
B6: TOTAL | C6: HOMBRES | E6: MUJERES | G6: TOTAL | H6: HOMBRES | J6: MUJERES | L6: TOTAL | M6: HOMBRES | O6: MUJERES
C7: ABS | D7: % | E7: ABS | F7: % | H7: ABS | I7: % | J7: ABS | K7: % | M7: ABS | N7: % | O7: ABS | P7: %
A9: TOTAL | B9: =SUM(B11:B46) -> 990 | C9: =SUM(C11:C46) -> 566 | D9: =C9/B9*100 -> 57.17171717 | E9: =SUM(E11:E46) -> 424 | F9: =E9/B9*100 -> 42.82828283 | G9: =SUM(G11:G46) -> 495 | H9: =SUM(H11:H46) -> 304 | I9: =H9/G9*100 -> 61.41414141 | J9: =SUM(J11:J46) -> 191 | K9: =J9/G9*100 -> 38.58585859 | L9: =SUM(L11:L46) -> 495 | M9: =SUM(M11:M46) -> 262 | N9: =M9/L9*100 -> 52.92929293 | O9: =SUM(O11:O46) -> 233 | P9: =O9/L9*100 -> 47.07070707
A11: UNIDAD SOCIAL CRISTIANA | B11: =G11+L11 -> 106 | C11: =H11+M11 -> 79 | D11: =C11/$B11*100 -> 74.52830189 | E11: =J11+O11 -> 27 | F11: =E11/B11*100 -> 25.47169811 | G11: =+H11+J11 -> 53 | H11: 42 | I11: =H11/$G11*100 -> 79.24528302 | J11: 11 | K11: =J11/$G11*100 -> 20.75471698 | L11: =+M11+O11 -> 53 | M11: 37 | N11: =M11/$L11*100 -> 69.81132075 | O11: 16 | P11: =O11/$L11*100 -> 30.18867925
A12: CURRIDABAT SIGLO XXI | B12: 8 | C12: 4 | D12: 50 | E12: 4 | F12: 50 | G12: 4 | H12: 2 | I12: 50 | J12: 2 | K12: 50 | L12: 4 | M12: 2 | N12: 50 | O12: 2 | P12: 50
A13: TARRAZÚ PRIMERO | B13: 2 | C13: 2 | D13: 100 | E13: 0 | F13: 0 | G13: 1 | H13: 1 | I13: 100 | J13: 0 | K13: 0 | L13: 1 | M13: 1 | N13: 100 | O13: 0 | P13: 0
A14: INTEGRACIÓN NACIONAL | B14: 2 | C14: 1 | D14: 50 | E14: 1 | F14: 50 | G14: 1 | H14: 0 | I14: 0 | J14: 1 | K14: 100 | L14: 1 | M14: 1 | N14: 100 | O14: 0 | P14: 0
A15: CÍVICO DE TIBÁS FUENTEOVEJUNA | B15: 2 | C15: 1 | D15: 50 | E15: 1 | F15: 50 | G15: 1 | H15: 0 | I15: 0 | J15: 1 | K15: 100 | L15: 1 | M15: 1 | N15: 100 | O15: 0 | P15: 0
A16: GOICOECHEA EN ACCIÓN | B16: 2 | C16: 1 | D16: 50 | E16: 1 | F16: 50 | G16: 1 | H16: 1 | I16: 100 | J16: 0 | K16: 0 | L16: 1 | M16: 0 | N16: 0 | O16: 1 | P16: 100
A17: ALIANZA PATRIÓTICA | B17: 6 | C17: 4 | D17: 66.66666667 | E17: 2 | F17: 33.33333333 | G17: 3 | H17: 2 | I17: 66.66666667 | J17: 1 | K17: 33.33333333 | L17: 3 | M17: 2 | N17: 66.66666667 | O17: 1 | P17: 33.33333333
A18: RENOVEMOS ALAJUELA | B18: 2 | C18: 2 | D18: 100 | E18: 0 | F18: 0 | G18: 1 | H18: 1 | I18: 100 | J18: 0 | K18: 0 | L18: 1 | M18: 1 | N18: 100 | O18: 0 | P18: 0
A19: EL PUENTE Y LOS CAMINOS DE MORA | B19: 2 | C19: 1 | D19: 50 | E19: 1 | F19: 50 | G19: 1 | H19: 1 | I19: 100 | J19: 0 | K19: 0 | L19: 1 | M19: 0 | N19: 0 | O19: 1 | P19: 100
A20: UNIÓN PALMAREÑA | B20: 4 | C20: 1 | D20: 25 | E20: 3 | F20: 75 | G20: 2 | H20: 1 | I20: 50 | J20: 1 | K20: 50 | L20: 2 | M20: 0 | N20: 0 | O20: 2 | P20: 100
A21: RENOVACIÓN COSTARRICENSE | B21: 20 | C21: 18 | D21: 90 | E21: 2 | F21: 10 | G21: 10 | H21: 10 | I21: 100 | J21: 0 | K21: 0 | L21: 10 | M21: 8 | N21: 80 | O21: 2 | P21: 20
A22: FRENTE AMPLIO | B22: 2 | C22: 1 | D22: 50 | E22: 1 | F22: 50 | G22: 1 | H22: 1 | I22: 100 | J22: 0 | K22: 0 | L22: 1 | M22: 0 | N22: 0 | O22: 1 | P22: 100
A23: ALIANZA SANCARLEÑA (COALICIÓN) | B23: 2 | C23: 1 | D23: 50 | E23: 1 | F23: 50 | G23: 1 | H23: 1 | I23: 100 | J23: 0 | K23: 0 | L23: 1 | M23: 0 | N23: 0 | O23: 1 | P23: 100
A24: VIVA BUENOS AIRES | B24: 2 | C24: 1 | D24: 50 | E24: 1 | F24: 50 | G24: 1 | H24: 1 | I24: 100 | J24: 0 | K24: 0 | L24: 1 | M24: 0 | N24: 0 | O24: 1 | P24: 100
A25: LIBERACIÓN NACIONAL | B25: 392 | C25: 199 | D25: 50.76530612 | E25: 193 | F25: 49.23469388 | G25: 196 | H25: 103 | I25: 52.55102041 | J25: 93 | K25: 47.44897959 | L25: 196 | M25: 96 | N25: 48.97959184 | O25: 100 | P25: 51.02040816
A26: GARABITO ECOLÓGICO | B26: 2 | C26: 2 | D26: 100 | E26: 0 | F26: 0 | G26: 1 | H26: 1 | I26: 100 | J26: 0 | K26: 0 | L26: 1 | M26: 1 | N26: 100 | O26: 0 | P26: 0
A27: UNIÓN AGRÍCOLA CARTAGINÉS | B27: 2 | C27: 1 | D27: 50 | E27: 1 | F27: 50 | G27: 1 | H27: 0 | I27: 0 | J27: 1 | K27: 100 | L27: 1 | M27: 1 | N27: 100 | O27: 0 | P27: 0
A28: BARVA UNIDA (COALICIÓN) | B28: 2 | C28: 2 | D28: 100 | E28: 0 | F28: 0 | G28: 1 | H28: 1 | I28: 100 | J28: 0 | K28: 0 | L28: 1 | M28: 1 | N28: 100 | O28: 0 | P28: 0
A29: POPULAR DE ALFARO RUIZ (COALICIÓN) | B29: 2 | C29: 1 | D29: 50 | E29: 1 | F29: 50 | G29: 1 | H29: 0 | I29: 0 | J29: 1 | K29: 100 | L29: 1 | M29: 1 | N29: 100 | O29: 0 | P29: 0
A30: MOVIMIENTO LIBERTARIO | B30: 150 | C30: 103 | D30: 68.66666667 | E30: 47 | F30: 31.33333333 | G30: 75 | H30: 55 | I30: 73.33333333 | J30: 20 | K30: 26.66666667 | L30: 75 | M30: 48 | N30: 64 | O30: 27 | P30: 36
A31: RESTAURACIÓN NACIONAL | B31: 2 | C31: 2 | D31: 100 | E31: 0 | F31: 0 | G31: 1 | H31: 1 | I31: 100 | J31: 0 | K31: 0 | L31: 1 | M31: 1 | N31: 100 | O31: 0 | P31: 0
A32: AUTÓNOMO OROMONTANO | B32: 2 | C32: 2 | D32: 100 | E32: 0 | F32: 0 | G32: 1 | H32: 1 | I32: 100 | J32: 0 | K32: 0 | L32: 1 | M32: 1 | N32: 100 | O32: 0 | P32: 0
A33: AUTÉNTICO LABRADOR DE CORONADO | B33: 2 | C33: 1 | D33: 50 | E33: 1 | F33: 50 | G33: 1 | H33: 1 | I33: 100 | J33: 0 | K33: 0 | L33: 1 | M33: 0 | N33: 0 | O33: 1 | P33: 100
A34: MOVIMIENTO AVANCE SANTO DOMINGO | B34: 2 | C34: 2 | D34: 100 | E34: 0 | F34: 0 | G34: 1 | H34: 1 | I34: 100 | J34: 0 | K34: 0 | L34: 1 | M34: 1 | N34: 100 | O34: 0 | P34: 0
A35: ACCIÓN CANTONAL SIQUIRRES INDEPENDIENTE | B35: 2 | C35: 1 | D35: 50 | E35: 1 | F35: 50 | G35: 1 | H35: 0 | I35: 0 | J35: 1 | K35: 100 | L35: 1 | M35: 1 | N35: 100 | O35: 0 | P35: 0
A36: ACCIÓN QUEPEÑA | B36: 2 | C36: 1 | D36: 50 | E36: 1 | F36: 50 | G36: 1 | H36: 1 | I36: 100 | J36: 0 | K36: 0 | L36: 1 | M36: 0 | N36: 0 | O36: 1 | P36: 100
A37: ÚNICO ABANGAREÑO | B37: 4 | C37: 2 | D37: 50 | E37: 2 | F37: 50 | G37: 2 | H37: 1 | I37: 50 | J37: 1 | K37: 50 | L37: 2 | M37: 1 | N37: 50 | O37: 1 | P37: 50
A38: UNIÓN ATENIENSE | B38: 2 | C38: 2 | D38: 100 | E38: 0 | F38: 0 | G38: 1 | H38: 1 | I38: 100 | J38: 0 | K38: 0 | L38: 1 | M38: 1 | N38: 100 | O38: 0 | P38: 0
A39: ORGANIZACIÓN SOCIAL ACTIVA | B39: 2 | C39: 2 | D39: 100 | E39: 0 | F39: 0 | G39: 1 | H39: 1 | I39: 100 | J39: 0 | K39: 0 | L39: 1 | M39: 1 | N39: 100 | O39: 0 | P39: 0
A40: DEL SOL | B40: 4 | C40: 1 | D40: 25 | E40: 3 | F40: 75 | G40: 2 | H40: 1 | I40: 50 | J40: 1 | K40: 50 | L40: 2 | M40: 0 | N40: 0 | O40: 2 | P40: 100
A41: INDEPENDIENTE BELEMITA | B41: 2 | C41: 1 | D41: 50 | E41: 1 | F41: 50 | G41: 1 | H41: 1 | I41: 100 | J41: 0 | K41: 0 | L41: 1 | M41: 0 | N41: 0 | O41: 1 | P41: 100
A42: ACCIÓN CIUDADANA | B42: 198 | C42: 100 | D42: 50.50505051 | E42: 98 | F42: 49.49494949 | G42: 99 | H42: 57 | I42: 57.57575758 | J42: 42 | K42: 42.42424242 | L42: 99 | M42: 43 | N42: 43.43434343 | O42: 56 | P42: 56.56565657
A43: LIGA RAMONENSE (COALICIÓN) | B43: 2 | C43: 1 | D43: 50 | E43: 1 | F43: 50 | G43: 1 | H43: 0 | I43: 0 | J43: 1 | K43: 100 | L43: 1 | M43: 1 | N43: 100 | O43: 0 | P43: 0
A44: INTEGRACIÓN BARBAREÑA | B44: 2 | C44: 1 | D44: 50 | E44: 1 | F44: 50 | G44: 1 | H44: 0 | I44: 0 | J44: 1 | K44: 100 | L44: 1 | M44: 1 | N44: 100 | O44: 0 | P44: 0
A45: ACCESIBILIDAD SIN EXCLUSIÓN | B45: 46 | C45: 21 | D45: 45.65217391 | E45: 25 | F45: 54.34782609 | G45: 23 | H45: 13 | I45: 56.52173913 | J45: 10 | K45: 43.47826087 | L45: 23 | M45: 8 | N45: 34.7826087 | O45: 15 | P45: 65.2173913
A46: YUNTA PROGRESISTA ESCAZUCEÑA | B46: 4 | C46: 1 | D46: 25 | E46: 3 | F46: 75 | G46: 2 | H46: 0 | I46: 0 | J46: 2 | K46: 100 | L46: 2 | M46: 1 | N46: 50 | O46: 1 | P46: 50
